{"text_format":"1","workbook":"xlsx","n_sheets":22,"sheets":["Cover Page","Contents","Facility Info","Operational Data","Operational Summary","Perf. Form 1","Energy Form 1","Permit Compliance","Improvements","Public Liasion","Residue Quality ","Water","Air (periodic)","Air (CEMS)","HCl","SO2","NOx","TOC","Particulates","CO 0.5hourly","NH3","HF"],"not_rendered":{"charts":8,"images":2,"macros":1,"external_links":1,"defined_names":21,"comments":0,"pivot_tables":0},"unopened":[],"bounds":{"document_bytes":16777216,"sheet_cells":100000,"rows_first":2000,"rows_last":500,"rows_between":2000,"halvings":0,"cell_chars":16384,"cell_head_chars":4096},"cells_cut":0,"cells_raw":0,"read":"whole","date_system":"1900"}

{"sheet":"Cover Page","index":0,"n_rows":53,"n_cols":14,"rows_kept":53,"cut":false,"hidden":false,"merged":[[48,2,48,3],[48,6,48,8],[52,2,52,3],[36,1,36,8],[40,2,40,8],[42,2,42,4],[44,2,44,4],[46,2,46,3],[46,6,46,8],[13,13,18,15],[34,1,34,8],[0,3,5,6],[7,1,23,8],[28,1,28,8],[30,1,30,8],[32,1,32,8]]}
[null,null,null,"Add company logo"]
[null,null,null,null,null,null,null,null,null,null,null,null,null,"Version 20.6 "]
[]
[]
[]
[]
[]
[null,"Add photo"]
[]
[]
[]
[]
[null,null,null,null,null,null,null,null,null,null,null,null,null,"Notes:"]
[null,null,null,null,null,null,null,null,null,null,null,null,null,"This template may require adjustments by individual operators to meet specific reporting requirements as defined in the site Permit(s)"]
[]
[]
[]
[]
[]
[]
[]
[]
[]
[]
[]
[]
[]
[]
[null,"Annual Performance Report 2020"]
[]
[null,"Permit EPR/GP3433GH"]
[]
[null,"Cornwall Energy Recovery Centre"]
[]
[]
[]
[null,"SUEZ Recycling and Recovery UK Ltd"]
[]
[null,"Year:",2020]
[]
[null,"Address:","St Dennis, St Austell, Cornwall, PL26 8DY"]
[]
[null,"Tel: ","07970 233762"]
[]
[null,"Email: ","richard.watkins@suez.com"]
[]
[null,"Prepared by:","Richard Watkins",null,null,"Position:","EIR Advisor"]
[]
[null,"Approved by:","Tony Burge",null,null,"Position:","Plant Manager"]
[]
[null,"Version:",1]
[]
[null,"Issue Date:","2021-01-28"]

{"sheet":"Contents","index":1,"n_rows":44,"n_cols":11,"rows_kept":44,"cut":false,"hidden":false,"merged":[[43,0,46,9],[36,1,36,6],[37,1,37,6],[38,1,38,6],[39,1,39,6],[40,1,40,6],[41,1,41,6],[35,1,35,6],[21,1,21,6],[22,1,22,6],[23,1,23,6],[26,1,26,6],[27,1,27,6],[28,1,28,6],[29,1,29,6],[30,1,30,6],[31,1,31,6],[34,1,34,6],[20,1,20,6],[9,1,9,6],[10,1,10,6],[11,1,11,6],[12,1,12,6],[13,1,13,6],[14,1,14,6],[15,1,15,6],[16,1,16,6],[17,1,17,6],[18,1,18,6],[19,1,19,6],[4,10,7,14],[8,1,8,6],[3,1,3,6],[4,1,4,6],[5,1,5,6],[6,1,6,6],[7,1,7,6]]}
[{"$f":"+'Cover Page'!$B$29","v":"Annual Performance Report 2020"},null,null,null,{"$f":"+'Cover Page'!$B$33","v":"Cornwall Energy Recovery Centre"}]
[]
["Contents",null,null,null,null,null,null,null,null,null,"Notes:"]
["Section","Subject",null,null,null,null,null,"Page ",null,null,"Section references and Page nos. to be inserted"]
[null,"Facility Information",null,null,null,null,null,null,null,null,"Sections and Subjects may require adjustment by individual operators to meet specific reporting requirements as defined in the sites Permit(s)"]
[null,"Operational Summary"]
[null,"Operational Data"]
[null,"Performance Form 1"]
[null,"Energy Form 1"]
[null,"Permit Compliance"]
[null,"Improvements"]
[null,"Public Liaison"]
[null,"Residue Quality - Optional"]
[null,"Emissions to Water"]
[null,"Emissions to Air (periodically monitored)"]
[null,"Emissions to Air (continuously monitored)"]
[null,"Hydrogen Chloride emissions"]
[null,"Sulphur Dioxide emissions"]
[null,"Oxides of Nitrogen emissions"]
[null,"Total Organic Carbon emissions"]
[null,"Particulate Matter emissions"]
[null,"Carbon Monoxide emissions"]
[null,"Ammonia emissions"]
[null,"Hydrogen Fluoride emissions"]
[]
["Version Control"]
["Section","Information",null,null,null,null,null,"Date"]
[]
[]
[]
[]
[]
[]
["Distribution"]
["Copy","Name, Role",null,null,null,null,null,"No."]
[1,"SUEZ - Environment & Industrial Risk Team"]
[2,"SUEZ - Site Operational Management Team"]
[3,"Environment Agency"]
[]
[]
[]
[]
[]
["This report is required under the Industrial Emissions Directive’s Article 55(2) requirements on reporting and public information on waste incineration plants and co-incineration plants, which require the operator to produce an annual report on the functioning and monitoring of the plant and make it available to the public. "]

{"sheet":"Facility Info","index":2,"n_rows":22,"n_cols":11,"rows_kept":22,"cut":false,"hidden":false,"merged":[[4,0,17,8],[21,0,53,8],[4,10,13,13],[21,10,30,13]]}
[{"$f":"+'Cover Page'!$B$29","v":"Annual Performance Report 2020"},null,null,null,{"$f":"+'Cover Page'!$B$33","v":"Cornwall Energy Recovery Centre"}]
[]
["Plant Description and Design",null,null,null,null,null,null,null,null,null,"Notes:"]
[]
["This non-hazardous waste incinerator operates 24/7 and can process up to 240,000 tonnes of municipal waste and commercial/Industrial waste. The plant has two furnace lines and the heat produced by waste incineration is used to raise superheated steam which generates up to 188,000 MWh/annum of electricity.\n\nActivities associated with the incineration are receipt and storage of municipal waste and commercial/industrial waste, production of steam and electricity, abatement of flue gas and handling of Incinerator Bottom Ash (IBA) and Air Pollution Control Residue (APCR).\n\nThe data included within this report corresponds to the following period: 1st January 2020 to 31st December 2020.",null,null,null,null,null,null,null,null,null,"Include summary of plant design, design capacity, no. of combustion lines, electrical and heat capacity and any other general information that descibes the facility, its location and purpose "]
[]
[]
[]
[]
[]
[]
[]
[]
[]
[]
[]
[]
[]
[]
["Summary of Operational Processes and Procedures"]
[]
["Incoming waste is delivered to site by refuse collection trucks. It is weighed in and delivered into the tipping hall.\nTIPPING HALL - A large tipping hall allows for refuse collection trucks to manoeuvre and tip waste safely. Air needed for combustion is drawn into the furnace from here so that negative pressure is maintained in order to avoid odour and dust escaping the building.\n\nBUNKER - Waste vehicles reverse to a wheel stop and tip their loads into a large concrete bunker. Mixing of waste occurs as the cranes driver sorts the waste looking for unsuitable material to be removed, and to improve the homogeneity of the incinerator feedstock.\n\nCONTROL ROOM - The plant’s control room centralises the operation of all equipment, including the grab cranes used to mix and load waste into a hopper that feeds the furnace. All on-site functions are monitored automatically and manually.  Its systems verify in real time that equipment is functioning properly, continuously monitor the combustion gas, and maximise the efficiency of the entire ERC process.\n\nGRATE AND BOILER - Waste is lifted into the charging hoppers by the crane. From here it falls into the furnace-charging chute and then is introduced onto the grate system by hydraulic feeders for incineration. Auxiliary burners can be used to help keeping the temperature above 850°C if required. The thermal energy released from the burning is used to convert water to super-heated steam along a boiler composed of 4 vertical passes. At high pressure, this steam drives a turbine to generate electricity.\n\nELECTRICITY GENERATION - Electricity is generated at 11kv, with an electric production of 188,000 MWh/annum and exporting 150,000 MWh/annum to the national grid.\n\nINCINERATOR BOTTOM ASH (IBA) - Ash left on the grate after incineration is carried by conveyor, after quenching, to the IBA processing facility.  Up to 65,000 tonne of IBA is processed on site by the removal of ferrous and non-ferrous metal, stabilised and separated into fraction sizes of IBA prior to the export from site of the processed IBA and metals for re-use.\n\nAIR-COOLED CONDENSERS - After exiting the turbine, the steam is cooled and condensed back into water through air condensers. This recovered water is treated and reused in the boilers to produce more steam.\n\nEMISSION CONTROL - The gases from the furnace are subject to a rigorous cleaning process involving ammonia as selective noncatalytic reduction (SNCR), lime and active carbon injections. This removes oxides of nitrogen, acidic gases, dioxins, and heavy metals from the gas stream.\n\nAIR POLLUTION CONTROL RESIDUE (APCR) - The cleaned gas passes through fine-fabric bag filters to remove solid particles before it is emitted through the stack. The resultant APCR residue, or fly-ash, contains particles from the incineration process, lime used in the flue gas treatment, salts and carbon dust. It is stored in a sealed silo until it is taken away for recycling in tankers.\n\nEMISSIONS MONITORING - As they pass through the stack, the residual flue gases from the process are continuously monitored before release. This data is relayed automatically to the control room.",null,null,null,null,null,null,null,null,null,"Include summary of key processes and procedures such as (but not limited to); waste reception, control rooms, grate, bed and bolier, energy & heat  generation, cooling systems, residue management, emission controls, health and safety systems, maintenance"]

{"sheet":"Operational Data","index":3,"n_rows":65,"n_cols":11,"rows_kept":65,"cut":false,"hidden":false,"merged":[[5,10,6,10],[7,10,18,10],[33,1,38,1],[30,2,30,5],[30,6,30,7],[3,1,3,2],[7,1,19,1],[23,1,26,1],[28,1,29,1],[52,0,56,0]]}
[{"$f":"+'Cover Page'!$B$29","v":"Annual Performance Report 2020"},null,null,null,{"$f":"+'Cover Page'!$B$33","v":"Cornwall Energy Recovery Centre"}]
[]
["Operational Data",null,null,null,null,null,null,null,null,null,"Notes:"]
["Plant Size",254000,null,"tonnes pa",86,"MWth",24,"MWe",null,null,"* - RDF to include SRF "]
["No. of combustion lines",1,null,"No. of Turbines:",null,1,null,null,null,null,"** - CHP plants only"]
[null,null,null,null,null,null,null,null,null,null,"2020 updates include;  heat in MWh, water in Litres, NCV in MJ/kg"]
["Waste types received","Unit","Q1","Q2","Q3","Q4","Year Total","%"]
["Household / Local Authority","tonnes",39672,37615,44143,41059,{"$f":"SUM(C8:F8)","v":162489},{"$f":"IF(G8>0,G8/$G$18,\"-\")","v":0.66437289175099667},null,null,"Availabiity Definition: 'the availability of a line is to be calculated by the number of hours the line reported Continuously Monitored emission levels to the Regulator through the calendar year divided by the total number of hours in that year. \nThe overall plant availability is calculated as the Mean of all lines in the plant. For clarity this includes periods of Other Than Normal Operating Conditions (OTNOC) and abnormal operation.'  \n\nRationale: The primary function of an Energy from Waste facility is the disposal of waste. It follows therefore that the availability of a plant is determined by the period of time a facility spends undertaking this activity."]
["Commercial & Industrial ",null,15676,19362,23249,23799,{"$f":"SUM(C9:F9)","v":82086},0.33562710824900338]
["Hazardous ",null,null,null,null,null,0,"-"]
["Clinical",null,null,null,null,null,0,"-"]
["Waste wood (biomass) ",null,null,null,null,null,0,"-"]
["Refuse Derived Fuel * - H'hold/LA",null,null,null,null,null,{"$f":"SUM(C13:F13)","v":0},"-"]
["Refuse Derived Fuel *  - C&I",null,null,null,null,null,0,"-"]
["Other [Please specify]",null,null,null,null,null,0,"-"]
["Other [Please specify]"]
["Other [Please specify]"]
["Total waste received",null,{"$f":"SUM(C8:C17)","v":55348},{"$f":"SUM(D8:D17)","v":56977},{"$f":"SUM(E8:E17)","v":67392},{"$f":"SUM(F8:F17)","v":64858},{"$f":"SUM(G8:G17)","v":244575},1]
["Rejected Waste ",null,null,null,null,null,{"$f":"SUM(C19:F19)","v":0},{"$f":"IF(G19>0,G19/$G$18,\"-\")","v":"-"}]
["Unprocessed waste transferred out",null,null,null,null,null,{"$f":"SUM(C20:F20)","v":0},{"$f":"IF(G20>0,G20/$G$18,\"-\")","v":"-"}]
["Total waste combusted",null,50351.46,59250.78,67126.42,60067.33,{"$f":"SUM(C21:F21)","v":236795.99},{"$f":"IF(G21>0,G21/$G$18,\"-\")","v":0.96819376469385665}]
[]
["Energy Useage / Export","Unit","Q1","Q2","Q3","Q4","Year Total","KWh/te"]
["Power Generated","MWh",27137,43917,49183,42565,{"$f":"SUM(C24:F24)","v":162802},{"$f":"IF(G24>0,G24*1000/$G$21,\"-\")","v":687.5200884947418}]
["Power Exported",null,23699,39453,43714,37695,{"$f":"SUM(C25:F25)","v":144561},{"$f":"IF(G25>0,G25*1000/$G$21,\"-\")","v":610.48753401609554}]
["Power Used on site",null,{"$f":"(C24-C25)+C27","v":4096},{"$f":"(D24-D25)+D27","v":4467},{"$f":"(E24-E25)+E27","v":5478},{"$f":"(F24-F25)+F27","v":5193},{"$f":"SUM(C26:F26)","v":19234},{"$f":"IF(G26>0,G26*1000/$G$21,\"-\")","v":81.226037653762631}]
["Power Imported",null,658,3,9,323,993,{"$f":"IF(G27>0,G27*1000/$G$21,\"-\")","v":4.1934831751162678}]
["Parasitic Load","%",{"$f":"IF(C24>0,1-C25/(C24+C27),\"-\")","v":0.1473646339269653},{"$f":"IF(D24>0,1-D25/(D24+D27),\"-\")","v":0.10170765027322404},{"$f":"IF(E24>0,1-E25/(E24+E27),\"-\")","v":0.11135957066189628},{"$f":"IF(F24>0,1-F25/(F24+F27),\"-\")","v":0.12108282036933404},{"$f":"IF(G24>0,1-G25/(G24+G27),\"-\")","v":0.11742727189474644}]
["Thermal Energy Produced **","MWh",null,null,null,null,{"$f":"SUM(C29:F29)","v":0},{"$f":"IF(G29>0,G29*1000/$G$21,\"-\")","v":"-"}]
["Thermal Energy Exported **",null,null,null,null,null,0,{"$f":"IF(G30>0,G30*1000/$G$21,\"-\")","v":"-"}]
["R1 value",null,0.79,null,null,null,"Operational"]
[]
["Waste Disposal & Recovery","Unit","Q1","Q2","Q3","Q4","Year Total","% inputs"]
["APC Residues - produced","tonnes",1270,1317,1540,1486,{"$f":"SUM(C34:F34)","v":5613},{"$f":"IF(G34>0,G34/$G$21,\"-\")","v":2.3703948702847547E-2}]
["IBA - produced",null,12593,11130,13310,10876,47909,{"$f":"IF(G35>0,G35/$G$21,\"-\")","v":0.20232183830477873}]
["Metals recycling",null,2347,2076,2520,2152,{"$f":"SUM(C36:F36)","v":9095},3.8408589604916873E-2]
["Other",null,0,0,0,0,{"$f":"SUM(C37:F37)","v":0},"-"]
["Other",null,0,0,0,0,0,"-"]
["Other",null,0,0,0,0,0,"-"]
[]
["Raw Material Usage","Unit","Q1","Q2","Q3","Q4","Year Total","kg or Ltr /te"]
["Mains Water","ltrs",4087000,4705000,5799000,5532000,{"$f":"SUM(C42:F42)","v":20123000},{"$f":"IF(G42>0,G42/$G$21,\"-\")","v":84.980324202280627}]
["Other Water","ltrs",null,null,null,null,0,{"$f":"IF(G43>0,G43/$G$21,\"-\")","v":"-"}]
["Ammonia","kgs",26519,27197,47940,43669,145325,0.6137139400037982]
["Urea","kgs",null,null,null,null,{"$f":"SUM(C45:F45)","v":0},"-"]
["Activated Carbon","kgs",21397,23885,30133,27492,102907,0.43458083897451139]
["Lime / hydrated lime","kgs",411964,516731,545121,454887,1928703,8.1449985702882888]
["Fuel oil","ltrs",145436,29049,35456,147455,357396,1.5092992073049887]
["Gas","cf",0,0,0,0,0]
["Other",null,0,0,0,0,0]
[]
["Summary ","Line/Unit","Q1","Q2","Q3","Q4","Year Total",null,null,"Hrs in year "]
["Availability of waste combustion by line, hrs",{"$f":"+B5","v":1},1763,2184,2195,1727,{"$f":"SUM(C53:F53)","v":7869},{"$f":"G53/J53","v":0.89828767123287667},null,8760]
[null,2,1817,2179,2204,2160,8360,{"$f":"G54/J53","v":0.954337899543379}]
[null,3,null,null,null,null,0,"x %"]
[null,4,null,null,null,null,0,"x %"]
[null,5,null,null,null,null,{"$f":"SUM(C57:F57)","v":0},"x %"]
["Overall Availability, mean avg. of all lines, hrs",null,null,null,null,null,{"$f":"AVERAGE(G53:G54)","v":8114.5},{"$f":"G58/J53","v":0.92631278538812789}]
["Hours of turbine operations, hrs",1,1715,2182,2203,2041,8141,{"$f":"G59/J53","v":0.92933789954337898}]
["Hours of turbine operations, hrs",2,null,null,null,null,0,"x %"]
["Hours of heat / steam export",null,null,null,null,null,0,{"$f":"IF(B61>0,G60/J53,\"n/a\")","v":"n/a"}]
["Net Calorific Value of waste","MJ/kg",9.1999999999999993,9.3000000000000007,9,8.9,{"$f":"AVERAGE(C62:F62)","v":9.1},"-"]
["Abnormal Events","qty.",0,0,3,2,5,{"$f":"IF(G63>0,\"yes\",\"no\")","v":"yes"}]
["Abnormal operation","hours",0,0,2,1,3,{"$f":"+(G64)/J53","v":3.4246575342465754E-4}]
["Permit Breaches","qty.",4,9,5,4,22,{"$f":"IF(G65>0,\"yes\",\"no\")","v":"yes"}]

{"sheet":"Operational Summary","index":4,"n_rows":31,"n_cols":11,"rows_kept":31,"cut":false,"hidden":false,"merged":[[4,0,26,8],[30,0,51,8],[4,10,13,13],[30,10,39,13]]}
[{"$f":"+'Cover Page'!$B$29","v":"Annual Performance Report 2020"},null,null,null,{"$f":"+'Cover Page'!$B$33","v":"Cornwall Energy Recovery Centre"}]
[]
["Summary of Plant Operations and Maintenance during the reporting year",null,null,null,null,null,null,null,null,null,"Notes:"]
[]
["The annual outage of March 2020 was quickly overshadowed by the Covid pandemic and a national lock down was announced as we were half way through. However we manged to install distancing measures and precautions that allowed us to continue to rebuild the plant and return to service with good reliability. The outage works consisted of the normal grit blasting all internal furnace tubes, thickness testing and NDT. A large program of conveyor overhauls was undertaken and our scaffold contractor recorded 133 separate scaffold assemblies across plant. The roller grate was stripped and inspected and our refractory contractor undertook various repair works across both lines.\nThe balance of the year still under the Covid precautions has been very successful for plant reliability, only being hampered by a premature tube leak in the third quarter. This was repaired and the opportunity to undertake other inspections and repairs was taken to address many other offline tasks.\nVinci returned to site to undertake remedial repair works to the roof and will be continuing into 2021.",null,null,null,null,null,null,null,null,null,"Include summary of key operational and/or mainteanance activity undertaken in the year, such as any major component upgrades and/or replacements "]
[]
[]
[]
[]
[]
[]
[]
[]
[]
[]
[]
[]
[]
[]
[]
[]
[]
[]
[]
[]
[]
[]
[]
["Summary of Residue Handling for the reporting year"]
[]
["All IBA produced by the incineration process is treated on site at the bottom ash recycling plant operated by Blue Phoenix. The aggregates are separated from the metals with aggregates being sold as a secondary aggregate for use in construction and all metals being recycled. All APCR produced is currently disposed of to hazardous landfill.",null,null,null,null,null,null,null,null,null,"Include in here a summary of residue handling regimes and destinations "]

{"sheet":"Perf. Form 1","index":5,"n_rows":54,"n_cols":10,"rows_kept":54,"cut":false,"hidden":false,"merged":[[53,7,53,8],[47,0,47,1],[49,0,49,9],[50,0,51,9],[38,0,38,9],[39,0,40,9],[43,0,43,1],[43,2,43,9],[45,0,45,1],[46,0,46,1],[36,0,36,3],[36,4,36,5],[36,7,36,8],[37,0,37,3],[37,4,37,5],[37,7,37,8],[34,0,34,3],[34,4,34,5],[34,7,34,8],[35,0,35,3],[35,4,35,5],[35,7,35,8],[31,0,31,3],[31,7,31,8],[32,0,32,3],[32,4,32,5],[32,7,32,8],[33,0,33,3],[33,4,33,5],[33,7,33,8],[23,0,23,3],[23,4,23,5],[23,6,23,7],[23,8,23,9],[25,0,25,9],[26,0,28,9],[21,0,21,1],[21,2,21,3],[21,4,21,5],[21,6,21,7],[21,8,21,9],[22,0,22,3],[22,4,22,5],[22,6,22,7],[22,8,22,9],[19,0,19,1],[19,2,19,3],[19,4,19,5],[19,6,19,7],[19,8,19,9],[20,0,20,1],[20,2,20,3],[20,4,20,5],[20,6,20,7],[20,8,20,9],[17,0,17,1],[17,2,17,3],[17,4,17,5],[17,6,17,7],[17,8,17,9],[18,0,18,1],[18,2,18,3],[18,4,18,5],[18,6,18,7],[18,8,18,9],[15,0,15,1],[15,2,15,3],[15,4,15,5],[15,6,15,7],[15,8,15,9],[16,0,16,9],[13,0,13,1],[13,2,13,3],[13,4,13,5],[13,6,13,7],[13,8,13,9],[14,0,14,3],[14,4,14,5],[14,6,14,7],[14,8,14,9],[11,0,11,1],[11,2,11,3],[11,4,11,5],[11,6,11,7],[11,8,11,9],[12,0,12,1],[12,2,12,3],[12,4,12,5],[12,6,12,7],[12,8,12,9],[9,0,9,9],[10,0,10,1],[10,2,10,3],[10,4,10,5],[10,6,10,7],[10,8,10,9],[2,0,2,4],[2,6,2,8],[3,1,3,4],[5,3,5,4],[5,6,5,7],[8,0,8,1],[8,2,8,3],[8,4,8,5],[8,6,8,7],[8,8,8,9]]}
[{"$f":"+'Cover Page'!C39","v":2020}," Annual Reporting Performance Form 1"]
[]
[{"$f":"+'Cover Page'!B31","v":"Permit EPR/GP3433GH"},null,null,null,null,"Operator: ","SUEZ Recycling and Recovery UK Ltd"]
["Facility:",{"$f":"+'Cover Page'!B33:I33","v":"Cornwall Energy Recovery Centre"},null,null,null,"Form:","Performance 1"]
[]
["Reporting  Period from: ",null,null,"2020-01-01",null,"to:","2020-12-31"]
[]
[{"$f":"+A1","v":2020},"Annual Reporting of Waste Disposal and Recovery"]
["Waste Description",null,"Disposal Route(s)",null,"Disposal Tonnes",null,"Recovery Tonnes",null,"% / tonne of waste incinerated"]
["1) Hazardous Wastes"]
["APC Residues",null,"D05",null,5612.3,null,null,null,{"$f":"IF((E11+G11)>0,(E11+G11)/'Operational Data'!$G$21, \"-\")","v":2.3700992571706981E-2}]
["IBA",null,null,null,null,null,null,null,{"$f":"IF((E12+G12)>0,(E12+G12)/'Operational Data'!$G$21, \"-\")","v":"-"}]
[null,null,null,null,null,null,null,null,{"$f":"IF((E13+G13)>0,(E13+G13)/'Operational Data'!$G$21, \"-\")","v":"-"}]
[null,null,null,null,null,null,null,null,{"$f":"IF((E14+G14)>0,(E14+G14)/'Operational Data'!$G$21, \"-\")","v":"-"}]
["Total Hazardous Waste",null,null,null,{"$f":"SUM(E11:F14)","v":5612.3},null,{"$f":"SUM(G11:H14)","v":0},null,{"$f":"IF((E15+G15)>0,(E15+G15)/'Operational Data'!$G$21, \"-\")","v":2.3700992571706981E-2}]
[]
["2) Non-Hazardous Wastes"]
["IBA",null,"R10/R13",null,null,null,47908.9,null,{"$f":"IF((E18+G18)>0,(E18+G18)/'Operational Data'!$G$21, \"-\")","v":0.2023214160003301}]
["Ferrous Metal",null,"R04",null,null,null,6127.5,null,{"$f":"IF((E19+G19)>0,(E19+G19)/'Operational Data'!$G$21, \"-\")","v":2.5876705091163073E-2}]
["Process Water",null,null,null,null,null,null,null,{"$f":"IF((E20+G20)>0,(E20+G20)/'Operational Data'!$G$21, \"-\")","v":"-"}]
["Non-ferrous Metal",null,"R04",null,null,null,3026.7,null,{"$f":"IF((E21+G21)>0,(E21+G21)/'Operational Data'!$G$21, \"-\")","v":1.2781888747355899E-2}]
[null,null,null,null,null,null,null,null,{"$f":"IF((E22+G22)>0,(E22+G22)/'Operational Data'!$G$21, \"-\")","v":"-"}]
["Total Non-Hazardous Waste",null,null,null,{"$f":"SUM(E18:F22)","v":0},null,{"$f":"SUM(G18:H22)","v":57063.1},null,{"$f":"IF((E23+G23)>0,(E23+G23)/'Operational Data'!$G$21, \"-\")","v":0.24098000983884904}]
["TOTAL WASTE",null,null,null,{"$f":"+E23+E15","v":5612.3},null,{"$f":"+G23+G15","v":57063.1},null,{"$f":"IF((E24+G24)>0,(E24+G24)/'Operational Data'!$G$21, \"-\")","v":0.26468100241055603}]
[]
["Operator’s comments :"]
[]
[]
[]
[]
[{"$f":"+A1","v":2020},"Annual Reporting of Water and Other Raw Material Usage"]
["Raw Material",null,null,null,"Usage",null,"Unit","Specific Useage",null,"Unit"]
["Mains Water",null,null,null,{"$f":"+'Operational Data'!G42","v":20123000},null,"m3",{"$f":"IF(E33>0,E33/'Operational Data'!$G$21,\"-\")","v":84.980324202280627},null,"m3/te"]
["Total Water",null,null,null,{"$f":"+'Operational Data'!G43+'Operational Data'!G42","v":20123000},null,"m3",{"$f":"IF(E34>0,E34/'Operational Data'!$G$21,\"-\")","v":84.980324202280627},null,"m3/te"]
["Urea / Ammonia",null,null,null,{"$f":"+'Operational Data'!G44","v":145325},null,"kg",{"$f":"IF(E35>0,E35/'Operational Data'!$G$21,\"-\")","v":0.6137139400037982},null,"kg/te"]
["Activated Carbon",null,null,null,{"$f":"+'Operational Data'!G46","v":102907},null,"kg",{"$f":"IF(E36>0,E36/'Operational Data'!$G$21,\"-\")","v":0.43458083897451139},null,"kg/te"]
["Lime / hydrated lime / Sodium Bicarb.",null,null,null,{"$f":"+'Operational Data'!G47","v":1928703},null,"kg",{"$f":"IF(E37>0,E37/'Operational Data'!$G$21,\"-\")","v":8.1449985702882888},null,"kg/te"]
[]
["Operator’s comments :"]
[]
[]
[]
[{"$f":"+A31","v":2020},"Annual Reporting of other performance indicators "]
["Parameter",null,"Results by Line"]
[null,null,"A1","A2","A3","A4","A5",null,"Turbine 1","Turbine 2"]
["Operating hours for the year, hours",null,7869,8360,null,null,null,null,8141]
["Number of periods of abnormal operation, qty.",null,3,2]
["Cumulative hours of abnormal operation for this year, hours",null,1.5,1.5]
[]
["Operator’s comments :"]
[]
[]
[]
["Signed: ",null,null,null,null,null,"Date:","2021-01-27"]

{"sheet":"Energy Form 1","index":6,"n_rows":29,"n_cols":8,"rows_kept":29,"cut":false,"hidden":false,"merged":[[15,0,15,2],[15,3,15,4],[15,6,15,8],[17,0,17,8],[18,0,24,8],[13,0,13,2],[13,3,13,4],[13,6,13,8],[14,0,14,2],[14,3,14,4],[14,6,14,8],[11,0,11,2],[11,3,11,4],[11,6,11,8],[12,0,12,2],[12,3,12,4],[12,6,12,8],[9,0,9,2],[9,3,9,4],[9,6,9,8],[10,0,10,2],[10,3,10,4],[10,6,10,8],[2,6,2,8],[4,1,4,4],[6,3,6,4],[6,6,6,7],[8,0,8,2],[8,3,8,4],[8,6,8,8]]}
[{"$f":"+'Cover Page'!C39","v":2020}," Annual Reporting of Energy Usage/Export"]
[]
[{"$f":"+'Cover Page'!B31","v":"Permit EPR/GP3433GH"},null,null,null,null,"Operator: ","SUEZ Recycling and Recovery UK Ltd"]
[]
["Facility:",{"$f":"+'Cover Page'!B33:I33","v":"Cornwall Energy Recovery Centre"},null,null,null,"Form:","Energy 1"]
[]
["Reporting  Period from: ",null,null,{"$f":"+'Perf. Form 1'!D6:E6","v":"2020-01-01"},null,"to:",{"$f":"+'Perf. Form 1'!G6:H6","v":"2020-12-31"}]
[]
["Energy Source",null,null,"Energy Usage",null,"Unit","Specific Useage (KWh/tonne incinerated"]
["Electricity Produced",null,null,{"$f":"+'Operational Data'!G24","v":162802},null,"MWh",{"$f":"+'Operational Data'!H24","v":687.5200884947418}]
["Electricity Imported   ",null,null,{"$f":"+'Operational Data'!G27","v":993},null,"MWh",{"$f":"+'Operational Data'!H27","v":4.1934831751162678}]
["Electricity Exported",null,null,{"$f":"+'Operational Data'!G25","v":144561},null,"MWh",{"$f":"+'Operational Data'!H25","v":610.48753401609554}]
["Gas Oil",null,null,{"$f":"(('Operational Data'!G48/1000)*0.845)","v":301.99961999999999},null,"tonnes"]
["Steam/hot water exported",null,null,{"$f":"+'Operational Data'!G30","v":0},null,"GWh",{"$f":"+'Operational Data'!H30","v":"-"}]
[]
[]
[]
["Operator’s comments :"]
[]
[]
[]
[]
[]
[]
[]
[]
[]
[]
["Signed: ",null,null,null,null,null,"Date:","2021-01-27"]

{"sheet":"Permit Compliance","index":7,"n_rows":51,"n_cols":12,"rows_kept":51,"cut":false,"hidden":false,"merged":[[34,7,34,9],[26,1,26,3],[26,4,26,6],[26,7,26,9],[24,7,24,8],[32,1,32,3],[32,4,32,6],[32,7,32,9],[24,1,24,3],[24,4,24,6],[25,1,25,3],[25,4,25,6],[25,7,25,9],[30,4,30,6],[30,7,30,9],[31,1,31,3],[31,4,31,6],[31,7,31,9],[22,1,22,3],[22,4,22,6],[22,7,22,9],[23,1,23,3],[23,4,23,6],[23,7,23,9],[20,1,20,3],[20,4,20,6],[20,7,20,9],[21,1,21,3],[21,4,21,6],[21,7,21,9],[43,0,43,10],[18,0,18,10],[48,1,48,3],[48,4,48,6],[48,7,48,9],[44,1,44,3],[44,4,44,6],[44,7,44,9],[45,1,45,3],[45,4,45,6],[45,7,45,9],[40,1,40,3],[40,4,40,6],[40,7,40,9],[41,1,41,3],[41,4,41,6],[41,7,41,9],[38,1,38,3],[38,4,38,6],[38,7,38,9],[39,1,39,3],[39,4,39,6],[39,7,39,9],[19,1,19,3],[49,1,49,3],[49,4,49,6],[49,7,49,9],[46,1,46,3],[46,4,46,6],[46,7,46,9],[47,1,47,3],[47,4,47,6],[47,7,47,9],[37,1,37,3],[37,4,37,6],[37,7,37,9],[27,1,27,3],[27,4,27,6],[27,7,27,9],[28,1,28,3],[28,4,28,6],[28,7,28,9],[29,1,29,3],[29,4,29,6],[29,7,29,9],[30,1,30,3],[35,1,35,3],[35,4,35,6],[35,7,35,9],[36,1,36,3],[36,4,36,6],[36,7,36,9],[33,1,33,3],[33,4,33,6],[33,7,33,9],[34,1,34,3],[34,4,34,6],[15,5,15,8],[16,0,16,1],[13,5,13,8],[14,0,14,1],[14,2,14,4],[14,5,14,8],[15,0,15,1],[19,4,19,6],[19,7,19,9],[7,0,7,1],[7,2,7,8],[8,0,8,1],[8,2,8,4],[8,5,8,8],[8,11,17,14],[50,4,50,8],[9,0,9,1],[9,2,9,4],[9,5,9,8],[10,0,10,1],[10,2,10,4],[10,5,10,8],[11,0,11,1],[11,2,11,4],[11,5,11,8],[12,0,12,1],[12,2,12,4],[12,5,12,8],[13,0,13,1],[13,2,13,4],[16,2,16,4],[16,5,16,8],[15,2,15,4]]}
[{"$f":"+'Cover Page'!$B$29","v":"Annual Performance Report 2020"},null,null,null,{"$f":"+'Cover Page'!$B$33","v":"Cornwall Energy Recovery Centre"}]
[]
["Summary of Permit Compliance"]
[]
["Compliance with permit limits for continuously monitored pollutants"]
[]
["The plant met its emission limits as shown in the table below:"]
["Substance",null,"Percentage time compliant during operation",null,null,null,null,null,null,null,null,"Notes:"]
[null,null,"Half-hourly limit",null,null,"Daily limit",null,null,null,null,null,"Report to 2 decimal places, i.e. xx.xx%\n\nPlease provide a brief summary of each notification or non-compliance in the table (rather than just referring to notifications that were sent to the Regulator).  \n\n"]
["Particulates",null,1,null,null,1]
["Oxides of nitrogen",null,1,null,null,1]
["Sulphur dioxide",null,1,null,null,1]
["Carbon monoxide",null,0.99299999999999999,null,null,1]
["Total organic carbon",null,1,null,null,1]
["Hydrogen chloride",null,1,null,null,1]
["Hydrogen fluoride",null,1,null,null,1]
["Ammonia",null,"N/A",null,null,1]
[]
["Summary of any notifications or non-compliances under the permit"]
["Date","Summary of notification or non-compliance [including Line/Reference]",null,null,"Reason ",null,null,"Measures taken to prevent reoccurrence"]
["2020-01-24","1/2 hourly CO breach on Line 1",null,null,"Combustion instability due to waste quality",null,null,"Operator intervention."]
["2020-01-30","1/2 hourly CO breach on Line 1",null,null,"Gas cylinder discharge on grate - waste quality.",null,null,"Waste inspections and supplier comms."]
["2020-03-12","1/2 hourly CO breach on Line 2",null,null,"Combustion instability due to waste quality",null,null,"Operator intervention."]
["2020-03-26","1/2 hourly CO breach on Line 1",null,null,"Combustion instability due to waste quality",null,null,"Operator intervention."]
["2020-06-04","1/2 hourly CO breach on Line 2",null,null,"Fouling of secondary air nozzles",null,null,"Inspection & maintenance during next planned outage."]
["2020-06-07","1/2 hourly CO breach on Line 2",null,null,"Fouling of secondary air nozzles",null,null,"Inspection & maintenance during next planned outage."]
["2020-06-08","2 x 1/2 hourly CO breaches on Line 2",null,null,"Fouling of secondary air nozzles",null,null,"Inspection & maintenance during next planned outage."]
["2020-06-09","5 x 1/2 hourly CO breaches on Line 2",null,null,"Fouling of secondary air nozzles",null,null,"Inspection & maintenance during next planned outage."]
["2020-07-13","1/2 hourly CO breach on Line 2",null,null,"Temperature error during pyrometer cleaning.",null,null,"Cleaning procedure changed."]
["2020-07-15","1/2 hourly CO breach on Line 2",null,null,"Gas cylinder discharge on grate - waste quality.",null,null,"Waste inspections and supplier comms."]
["2020-07-26","1/2 hourly CO breach on Line 2",null,null,"O2 probe and pyrometer fault.",null,null,"Equipment replaced."]
["2020-08-11","1/2 hourly CO breach on Line 2",null,null,"Accidental E-stop activation.",null,null,"Preventative maintenance includes additional checks on E-stops"]
["2020-08-14","1/2 hourly CO breach on Line 2",null,null,"Combustion instability due to waste quality",null,null,"Operator intervention."]
["2020-08-22","Abnormal operation - particulates on Line 2",null,null,"Bag filter failure",null,null,"Isolation of chamber & bag filter replacement"]
["2020-08-25","Abnormal operation - particulates on Line 1",null,null,"Bag filter failure",null,null,"Isolation of chamber & bag filter replacement"]
["2020-09-26","Abnormal operation - particulates on Line 1",null,null,"Bag filter failure",null,null,"Isolation of chamber & bag filter replacement"]
["2020-10-02","1/2 hourly CO breach on Line 2",null,null,"Combustion instability due to waste quality",null,null,"Operator intervention."]
["2020-10-23","Abnormal operation - loss of CEMS on Line 2",null,null,"CEMS Software Issue",null,null,"Line shutdown until fault rectified by service contractor"]
["2020-10-30","1/2 hourly CO breach on Line 2",null,null,"Combustion instability due to waste quality",null,null,"Operator intervention."]
["2020-11-28","Abnormal operation - particulates on Line 1",null,null,"Bag filter failure",null,null,"Isolation of chamber & bag filter replacement"]
["2020-12-04","1/2 hourly CO breach on Line 1 & 2",null,null,"Lightning strike on external grid",null,null,"N/A"]
[]
[]
["Summary of any complaints received and actions to taken to resolve them."]
["Date","Summary of complaint [including Line/Reference]",null,null,"Reason *",null,null,"Measures taken to prevent reoccurrence"]
["2020-06-30","Odour complaint - smell of burning waste, fume like smell",null,null,"Complaint not upheld, incineration process destroys hydrocarbons. Not substantiated by EA.",null,null,"Not applicable"]
["2020-12-17","Complaint of noise via the helpdesk from MOP.",null,null,"Helpdesk responded to advise that noise may be slightly increased due to maintenance activities.",null,null,"Not applicable"]
[]
[]
[]
[null,null,null,null,"* including whether substantiated by the operator or the EA"]

{"sheet":"Improvements","index":8,"n_rows":38,"n_cols":5,"rows_kept":38,"cut":false,"hidden":false,"merged":[[37,0,37,9],[38,0,47,9],[4,0,4,9],[5,0,13,9],[15,0,15,9],[16,0,24,9],[26,0,26,9],[27,0,35,9]]}
[{"$f":"+'Cover Page'!$B$29","v":"Annual Performance Report 2020"},null,null,null,{"$f":"+'Cover Page'!$B$33","v":"Cornwall Energy Recovery Centre"}]
[]
["Summary of Plant Improvements"]
[]
["Summary of any efficiency improvements that have been completed within the year."]
[]
[]
[]
[]
[]
[]
[]
[]
[]
[]
["Summary of any permit improvement conditions that have been completed within the year and the resulting environmental benefits."]
[]
[]
[]
[]
[]
[]
[]
[]
[]
[]
["Summary of any changes to the plant or operating techniques which required a variation to the permit and a summary of the resulting environmental impact."]
[]
[]
[]
[]
[]
[]
[]
[]
[]
[]
["Summary of any other improvements made to the plant or planned to be made and a summary of the resulting environmental benefits."]

{"sheet":"Public Liasion","index":9,"n_rows":29,"n_cols":5,"rows_kept":29,"cut":false,"hidden":false,"merged":[[23,0,24,1],[23,2,24,9],[25,0,26,1],[25,2,26,9],[28,0,28,9],[17,0,18,1],[17,2,18,9],[19,0,20,1],[19,2,20,9],[21,0,22,1],[21,2,22,9],[16,0,16,1],[16,2,16,9],[5,0,5,1],[5,2,5,9],[6,0,7,1],[6,2,7,9],[8,0,9,1],[8,2,9,9],[10,0,11,1],[10,2,11,9],[12,0,13,1],[12,2,13,9],[15,0,15,9]]}
[{"$f":"+'Cover Page'!$B$29","v":"Annual Performance Report 2020"},null,null,null,{"$f":"+'Cover Page'!$B$33","v":"Cornwall Energy Recovery Centre"}]
[]
["Details of Public & Stakeholder Liasion"]
[]
["Summary of events held during the reporting year."]
["Date",null,"Description"]
["2020-05-18",null,"Community Liaison group vitual meeting scheduled for this date but group preferred a written report. A PDF presentation was sent to all group members covering the normal agenda, Operations, Emmisions monitoring Health and Safety, Visitor update and the St Dennis and Nanpean Trust Fund."]
[]
["2020-12-01",null,"A virtual meeting took place where a presentation from Patrick Daws and Tony Burge was given to Cllr D Cole and Cllr F Greenslade on the need to increase tonnage accepted at the CERC temporarily in relation to the Covid-19 situation and the ongoing roof repairs."]
[]
[]
[]
[]
[]
[]
["List of events planned for next year"]
["Date",null,"Description"]
[]
[]
[]
[]
[]
[]
[]
[]
[]
[]
[]
["If you wish to be involved in the public liasion programme, please contact _________________"]

{"sheet":"Residue Quality ","index":10,"n_rows":35,"n_cols":6,"rows_kept":35,"cut":false,"hidden":false,"merged":[[35,0,40,6],[32,3,32,4],[34,0,34,6],[27,0,28,1],[29,0,29,1],[30,0,30,1],[31,0,31,1],[32,0,32,1],[29,3,29,4],[30,3,30,4],[29,5,29,6],[30,5,30,6],[31,5,31,6],[32,5,32,6],[20,0,21,1],[20,2,21,6],[22,0,23,1],[22,2,23,6],[31,3,31,4],[27,2,28,2],[28,3,28,4],[28,5,28,6],[27,3,27,6],[26,0,26,6],[5,0,6,6],[7,0,8,6],[9,0,10,6],[14,0,15,1],[14,2,15,6],[16,0,17,1],[16,2,17,6],[18,0,19,1],[18,2,19,6],[12,0,12,6],[13,0,13,1],[13,2,13,6]]}
[{"$f":"+'Cover Page'!$B$29","v":"Annual Performance Report 2020"},null,null,null,{"$f":"+'Cover Page'!$B$33","v":"Cornwall Energy Recovery Centre"}]
[]
["Residue Quality Monitoring Requirements"]
[]
["Summary of monitoring undertaken and compliance"]
["Quarterly IBA and APCR samples were taken in accordance with permit requirements.\nAn external laboratory completed all required analysis for permit compliance."]
[]
[]
[]
[]
[]
[]
["Commentary on any specific events"]
["Date & Event",null,"Description"]
["2020-08-17",null,"The Q3 APCR sample was lost in transit to the lab. A subsequent resample was not carried out until Q4 but two samples were taken during Q4 to ensure the requisite number of samples were provided within the calendar year."]
[]
[]
[]
[]
[]
[]
[]
[]
[]
[]
[]
["Residue Quality Monitoring Results"]
["Parameter (unit) ",null,"Limit","Normal Operation "]
[null,null,null,"Bottom ash  ",null,"APC Residues"]
["Loss on Ignition (average %)",null,"<5%","n/a"]
["Total Organic Carbon (average %)",null,"<3%",1.84]
["No. of Assessments Undertaken",null,"---",4,null,4]
["No. of Hazardous Results",null,"---",0]
[]
["Comments :"]

{"sheet":"Water","index":11,"n_rows":23,"n_cols":10,"rows_kept":23,"cut":false,"hidden":false,"merged":[[29,0,29,2],[29,3,29,5],[26,0,26,2],[26,3,26,5],[27,0,27,2],[27,3,27,5],[28,0,28,2],[28,3,28,5],[23,0,23,2],[23,3,23,5],[24,0,24,2],[24,3,24,5],[25,0,25,2],[25,3,25,5],[21,0,21,9],[22,0,22,2],[22,3,22,5],[14,0,15,1],[14,2,15,9],[16,0,17,1],[16,2,17,9],[18,0,19,1],[18,2,19,9],[5,0,6,9],[7,0,8,9],[9,0,10,9],[12,0,12,9],[13,0,13,1],[13,2,13,9]]}
[{"$f":"+'Cover Page'!$B$29","v":"Annual Performance Report 2020"},null,null,null,{"$f":"+'Cover Page'!$B$33","v":"Cornwall Energy Recovery Centre"}]
[]
["Emissions to Water"]
[]
["Summary of monitoring undertaken and compliance"]
["Water discharges are covered by a separate Environmental Permit."]
[]
[]
[]
[]
[]
[]
["Commentary on any specific events"]
["Date & Event",null,"Description"]
[]
[]
[]
[]
[]
[]
[]
["Emissions to Water / Sewer"]
["Parameter",null,null,"Monitoring Frequency",null,null,"Limit","Target","Max.","Average"]

{"sheet":"Air (periodic)","index":12,"n_rows":40,"n_cols":13,"rows_kept":40,"cut":false,"hidden":false,"merged":[[18,3,18,4],[27,3,27,4],[33,3,33,4],[19,3,19,4],[20,3,20,4],[21,3,21,4],[22,3,22,4],[23,3,23,4],[24,3,24,4],[31,3,31,4],[25,3,25,4],[26,3,26,4],[28,3,28,4],[13,3,13,4],[14,3,14,4],[15,3,15,4],[16,3,16,4],[17,3,17,4],[38,0,38,9],[19,0,19,1],[20,0,20,1],[21,0,21,1],[34,3,34,4],[35,3,35,4],[33,0,33,1],[34,0,34,1],[35,0,35,1],[36,0,36,1],[24,0,24,1],[32,3,32,4],[39,0,40,9],[25,0,25,1],[26,0,26,1],[22,0,22,1],[23,0,23,1],[37,0,37,1],[27,0,27,1],[28,0,28,1],[29,0,29,1],[30,0,30,1],[31,0,31,1],[32,0,32,1],[37,3,37,4],[29,3,29,4],[30,3,30,4],[36,3,36,4],[16,0,16,1],[17,0,17,1],[18,0,18,1],[13,0,13,1],[14,0,14,1],[15,0,15,1],[12,0,12,1],[11,3,11,4],[12,3,12,4],[9,0,10,1],[9,5,9,9],[9,3,10,4],[9,2,10,2],[5,12,8,15],[9,12,11,15],[8,0,8,9],[5,0,6,9],[11,0,11,1]]}
[{"$f":"+'Cover Page'!$B$29","v":"Annual Performance Report 2020"},null,null,null,{"$f":"+'Cover Page'!$B$33","v":"Cornwall Energy Recovery Centre"}]
[]
["Emissions to Air (periodically monitored)"]
[]
["Summary of monitoring undertaken, standards used and compliance",null,null,null,null,null,null,null,null,null,null,null,"Notes:"]
["Emissions testing is undertaken by an external contractor on a biannual basis as required by the Environmental Permit.\nWhile scheduled testing was delayed by Covid-19, all testing required during 2020 was completed.",null,null,null,null,null,null,null,null,null,null,null,"Template may require adjustment for any bespoke monitoring requirements of permit. "]
[]
[]
["Results of emissions to air that are periodically monitored"]
["Substance",null,"Ref. Period","Emission Limit Value",null,"Average",null,null,null,null,null,null,"User to add additional tables as necessary, depending on whether quarterly or bi-annual reporting is required for the compliance year"]
[null,null,null,null,null,"A1","A2","A3","A4","A5"]
["Hydrogen fluoride",null,"1 hr","2 mg/m3",null,0.20450000000000002,0.36499999999999999]
["Cd and Th and their compounds",null,"6-8hrs","0.05 mg/m3",null,8.9999999999999998E-4,1.3500000000000001E-3]
["Hg and its compounds",null,"6-8hrs","0.05 mg/m3",null,2.15E-3,2.5050000000000003E-3]
["Sb, As, Pb, Cr, Co, Cu, Mn, Ni, V and their compounds",null,"6-8hrs","0.5 mg/m3",null,0.11799999999999999,5.5E-2]
["Dioxins & Furans (I-TEQ)",null,"6-8hrs","0.1 ng/m3",null,1.9499999999999999E-3,9.2000000000000003E-4]
["PCBs (WHO-TEQ Humans / Mammals)",null,"6-8hrs","None set ng/m3",null,1.3099999999999999E-4,3.9499999999999998E-5]
["PCBs (WHO-TEQ Fish)",null,"6-8hrs","None set ng/m3",null,7.5000000000000002E-6,2.05E-5]
["PCBs (WHO-TEQ Birds)",null,"6-8hrs","None set ng/m3",null,6.8350000000000008E-4,3.4000000000000002E-4]
["Dioxins & Furans (WHO-TEQ Humans / Mammals)",null,"6-8hrs","None set ng/m3",null,1.8E-3,9.3000000000000005E-4]
["Dioxins & Furans (WHO-TEQ Fish)",null,"6-8hrs","None set ng/m3",null,2E-3,8.9999999999999998E-4]
["Dioxins & Furans (WHO-TEQ Birds)",null,"6-8hrs","None set ng/m3",null,3.65E-3,1.405E-3]
["Anthanthrene",null,"6-8hrs","None set µg/m3",null,1.41E-3,1.2000000000000001E-3]
["Benzo(a)anthracene",null,"6-8hrs","None set µg/m3",null,1.6099999999999999E-3,7.5000000000000002E-4]
["Benzo(a)pyrene",null,"6-8hrs","None set µg/m3",null,1.8599999999999999E-3,1.65E-3]
["Benzo(b)fluoranthene",null,"6-8hrs","None set µg/m3",null,1.31E-3,1.0499999999999999E-3]
["Benzo(b)naptho(2,1-d) thiophene",null,"6-8hrs","None set µg/m3",null,1.16E-3,7.5000000000000002E-4]
["Benzo(c)phenanthrene",null,"6-8hrs","None set µg/m3",null,8.5999999999999998E-4,7.5000000000000002E-4]
["Benzo(ghi)perylene",null,"6-8hrs","None set µg/m3",null,5.2599999999999999E-3,5.7499999999999999E-3]
["Benzo(k)fluoranthene",null,"6-8hrs","None set µg/m3",null,8.5999999999999998E-4,7.5000000000000002E-4]
["Cholanthrene",null,"6-8hrs","None set µg/m3",null,8.5999999999999998E-4,7.5000000000000002E-4]
["Chrysene",null,"6-8hrs","None set µg/m3",null,3.7099999999999998E-3,2.0999999999999999E-3]
["Cyclopenta(cd)pyrene",null,"6-8hrs","None set µg/m3",null,3.055E-3,6.7000000000000002E-3]
["Dibenzo(ai)pyrene",null,"6-8hrs","None set µg/m3",null,8.5999999999999998E-4,7.5000000000000002E-4]
["Dibenzo(ah)anthracene",null,"6-8hrs","None set µg/m3",null,8.5999999999999998E-4,7.5000000000000002E-4]
["Fluoranthene",null,"6-8hrs","None set µg/m3",null,5.9594999999999995E-2,3.3349999999999998E-2]
["Indeno(123-cd) pyrene",null,"6-8hrs","None set µg/m3",null,1.6099999999999999E-3,2.2500000000000003E-3]
["Naphthalene",null,"6-8hrs","None set µg/m3",null,0.23986499999999999,0.20279999999999998]
["Comments :"]
["Where the laboratory result was reported as a Method Detection Limit, the result has been replaced with a value equal to the MDL. Where dioxins/furans have been reported at the MDL the value has been replaced with a value equal to 0.5 times the MDL as per guidance received from the Environment Agency (Ben Freeman)."]

{"sheet":"Air (CEMS)","index":13,"n_rows":30,"n_cols":16,"rows_kept":30,"cut":false,"hidden":false,"merged":[[28,0,28,12],[30,0,31,12],[13,0,14,0],[5,0,6,12],[7,0,8,12],[10,0,10,12],[11,0,12,0],[11,2,12,2],[11,1,12,1],[11,3,11,4],[11,5,11,6],[11,7,11,8],[11,9,11,10],[11,11,11,12]]}
[{"$f":"+'Cover Page'!$B$29","v":"Annual Performance Report 2020"},null,null,null,null,null,null,null,{"$f":"+'Cover Page'!$B$33","v":"Cornwall Energy Recovery Centre"}]
[]
["Emissions to Air (continously monitored)"]
[null,null,null,null,null,null,null,null,null,null,null,null,null,null,null,"Notes:"]
["Summary of monitoring undertaken, standards used and compliance",null,null,null,null,null,null,null,null,null,null,null,null,null,null,"Template may require adjustment for any bespoke monitoring requirements of permit"]
[null,null,null,null,null,null,null,null,null,null,null,null,null,null,null,"Report to 2 decimal places, i.e. xx.xx%"]
[]
[]
[]
[]
["Results of emissions to air that are continuously monitored (maximum and average values for each line)"]
["Substance","Reference Period","Emission Limit Value","A1",null,"A2",null,"A3",null,"A4",null,"A5"]
[null,null,null,"Max.","Avg.","Max.","Avg.","Max.","Avg.","Max.","Avg.","Max.","Avg."]
["Oxides of nitrogen","Daily mean","200 mg/m3 ",149,130.91666666666666,150,133.16666666666666]
[null,"½ hourly mean","400 mg/m3 ",459,130.91666666666666,165,133.16666666666666]
["Particulates","Daily mean","10 mg/m3",3,0.55833333333333335,2.1,0.64166666666666672]
[null,"½ hourly mean","30 mg/m3 ",71.400000000000006,0.55833333333333335,39,0.64166666666666672]
["Total Organic Carbon ","Daily mean","10 mg/m3 ",1,0.28333333333333333,1,1.6666666666666666E-2]
[null,"½ hourly mean","20 mg/m3 ",9,0.28333333333333333,6,1.6666666666666666E-2]
["Hydrogen chloride ","Daily mean","10 mg/m3 ",7,5.916666666666667,7,5.75]
[null,"½ hourly mean","60 mg/m3 ",35,5.916666666666667,24,5.75]
["Sulphur dioxide","Daily mean","50 mg/m3 ",38,12.666666666666666,39,3.9166666666666665]
[null,"½ hourly mean","200 mg/m3 ",143,12.666666666666666,71,3.9166666666666665]
["Carbon monoxide ","Daily mean","50 mg/m3 ",85,7.833333333333333,30,8.25]
[null,"½ hourly mean","100 mg/m3",207,7.833333333333333,221,8.25]
["Hydrogen Fluoride","Daily mean","1 mg/m3 ",1,0,0,0]
[null,"½ hourly mean","4 mg/m3 ",1,0,1,0]
[" Ammonia","Daily mean","10 mg/m3 ",4.5,4.1666666666666664E-2,2,4.1666666666666664E-2]
["* = delete or amend as appropriate"]
["Comments :"]

{"sheet":"HCl","index":14,"n_rows":79,"n_cols":17,"rows_kept":79,"cut":false,"hidden":false,"merged":[[12,16,15,18],[51,9,63,9],[66,9,78,9],[4,9,4,14],[4,1,4,3],[4,4,4,6],[48,0,51,6],[47,0,47,6],[6,9,18,9],[21,9,33,9],[36,9,48,9],[3,16,7,18],[9,16,11,18]]}
[{"$f":"+'Cover Page'!$B$29","v":"Annual Performance Report 2020"},null,null,null,{"$f":"+'Cover Page'!$B$33","v":"Cornwall Energy Recovery Centre"}]
[]
["Monitoring of Hydrogen Chloride emissions",null,null,"Whole Installation",null,null,"See  Notes in Cell Q3",null,null,{"$f":"+A3","v":"Monitoring of Hydrogen Chloride emissions"},null,null,null,"Per Combustion Line",null,null,"Notes:"]
[null,null,null,null,null,null,null,null,null,null,null,null,null,null,null,null,"User to add logic to complete Whole installation, Table A5:G18. From the data in Per Combustion Line, Table J6:O79, subject to No. of lines installed"]
["mg/Nm3","1/2 Hourly Reference Periods",null,null,"Daily Reference Periods"]
[{"$f":"+'Cover Page'!C39","v":2020},"1/2 hourly HCl ELV","Monthly 1/2 hourly mean","Highest 1/2 hourly maximum","Daily HCl ELV","Monthly daily mean","Highest daily maximum",null,null,{"$f":"+A6","v":2020},"mg/Nm3","Monthly 1/2 hourly mean","Monthly 1/2 hourly maximum","Monthly daily mean","Monthly daily maximum"]
["Jan",60,{"$f":"AVERAGE(L7,L22)","v":6},{"$f":"AVERAGE(M7,M22)","v":11.5},10,{"$f":"AVERAGE(N7,N22)","v":6},{"$f":"AVERAGE(O7,O22)","v":6.5},null,null,"A1","Jan",6,12,6,6]
["Feb",60,{"$f":"AVERAGE(L8,L23)","v":5},11.5,10,{"$f":"AVERAGE(N8,N23)","v":5},6,null,null,null,"Feb",6,10,6,6]
["Mar",60,{"$f":"AVERAGE(L9,L24)","v":5},13,10,{"$f":"AVERAGE(N9,N24)","v":5},6,null,null,null,"Mar",5,9,5,6,null,"Whole Installation table A5:G18:"]
["Apr",60,{"$f":"AVERAGE(L10,L25)","v":6},10.5,10,{"$f":"AVERAGE(N10,N25)","v":6},6,null,null,null,"Apr",6,10,6,6,null,"Mean: for 1/2 hourly and daily periods calculate mean of values across all operational combustion lines for the month"]
["May",60,{"$f":"AVERAGE(L11,L26)","v":6},12.5,10,{"$f":"AVERAGE(N11,N26)","v":6},6,null,null,null,"May",6,11,6,6]
["Jun",60,{"$f":"AVERAGE(L12,L27)","v":6},11,10,{"$f":"AVERAGE(N12,N27)","v":6},6.5,null,null,null,"Jun",6,11,6,7]
["Jul",60,{"$f":"AVERAGE(L13,L28)","v":6},12,10,{"$f":"AVERAGE(N13,N28)","v":6},6.5,null,null,null,"Jul",6,11,6,6,null,"Maximum: for 1/2 hourly and daily periods use the highest value across all operational combustion lines for the month"]
["Aug",60,{"$f":"AVERAGE(L14,L29)","v":6},12,10,{"$f":"AVERAGE(N14,N29)","v":6},6,null,null,null,"Aug",6,11,6,6]
["Sep",60,{"$f":"AVERAGE(L15,L30)","v":6},12,10,{"$f":"AVERAGE(N15,N30)","v":6},6,null,null,null,"Sep",6,13,6,6]
["Oct",60,{"$f":"AVERAGE(L16,L31)","v":6},16,10,{"$f":"AVERAGE(N16,N31)","v":6},6,null,null,null,"Oct",6,14,6,6]
["Nov",60,{"$f":"AVERAGE(L17,L32)","v":6},14.5,10,{"$f":"AVERAGE(N17,N32)","v":6},6.5,null,null,null,"Nov",6,11,6,6]
["Dec",60,{"$f":"AVERAGE(L18,L33)","v":6},29.5,10,{"$f":"AVERAGE(N18,N33)","v":6},7,null,null,null,"Dec",6,35,6,7]
[null,null,null,null,null,null,null,null,null,null,"Annual",{"$f":"AVERAGE(L7:L18)","v":5.916666666666667},{"$f":"MAX(M7:M18)","v":35},{"$f":"AVERAGE(N7:N18)","v":5.916666666666667},{"$f":"MAX(O7:O18)","v":7}]
[]
[null,null,null,null,null,null,null,null,null,{"$f":"+A6","v":2020},"mg/Nm3","Monthly 1/2 hourly mean","Monthly 1/2 hourly maximum","Monthly daily mean","Monthly daily maximum"]
[null,null,null,null,null,null,null,null,null,"A2","Jan",6,11,6,7]
[null,null,null,null,null,null,null,null,null,null,"Feb",4,13,4,6]
[null,null,null,null,null,null,null,null,null,null,"Mar",5,17,5,6]
[null,null,null,null,null,null,null,null,null,null,"Apr",6,11,6,6]
[null,null,null,null,null,null,null,null,null,null,"May",6,14,6,6]
[null,null,null,null,null,null,null,null,null,null,"Jun",6,11,6,6]
[null,null,null,null,null,null,null,null,null,null,"Jul",6,13,6,7]
[null,null,null,null,null,null,null,null,null,null,"Aug",6,13,6,6]
[null,null,null,null,null,null,null,null,null,null,"Sep",6,11,6,6]
[null,null,null,null,null,null,null,null,null,null,"Oct",6,18,6,6]
[null,null,null,null,null,null,null,null,null,null,"Nov",6,18,6,7]
[null,null,null,null,null,null,null,null,null,null,"Dec",6,24,6,7]
[null,null,null,null,null,null,null,null,null,null,"Annual",{"$f":"AVERAGE(L22:L33)","v":5.75},{"$f":"MAX(M22:M33)","v":24},{"$f":"AVERAGE(N22:N33)","v":5.75},{"$f":"MAX(O22:O33)","v":7}]
[]
[null,null,null,null,null,null,null,null,null,{"$f":"+A6","v":2020},"mg/Nm3","Monthly 1/2 hourly mean","Monthly 1/2 hourly maximum","Monthly daily mean","Monthly daily maximum"]
[null,null,null,null,null,null,null,null,null,"A3","Jan"]
[null,null,null,null,null,null,null,null,null,null,"Feb"]
[null,null,null,null,null,null,null,null,null,null,"Mar"]
[null,null,null,null,null,null,null,null,null,null,"Apr"]
[null,null,null,null,null,null,null,null,null,null,"May"]
[null,null,null,null,null,null,null,null,null,null,"Jun"]
[null,null,null,null,null,null,null,null,null,null,"Jul"]
[null,null,null,null,null,null,null,null,null,null,"Aug"]
[null,null,null,null,null,null,null,null,null,null,"Sep"]
[null,null,null,null,null,null,null,null,null,null,"Oct"]
[null,null,null,null,null,null,null,null,null,null,"Nov"]
["Comments :",null,null,null,null,null,null,null,null,null,"Dec"]
[null,null,null,null,null,null,null,null,null,null,"Annual",{"$f":"AVERAGE(L37:L48)","v":{"$error":"#DIV/0!"}},{"$f":"MAX(M37:M48)","v":0},{"$f":"AVERAGE(N37:N48)","v":{"$error":"#DIV/0!"}},{"$f":"MAX(O37:O48)","v":0}]
[]
[null,null,null,null,null,null,null,null,null,{"$f":"+A6","v":2020},"mg/Nm3","Monthly 1/2 hourly mean","Monthly 1/2 hourly maximum","Monthly daily mean","Monthly daily maximum"]
[null,null,null,null,null,null,null,null,null,"A4","Jan"]
[null,null,null,null,null,null,null,null,null,null,"Feb"]
[null,null,null,null,null,null,null,null,null,null,"Mar"]
[null,null,null,null,null,null,null,null,null,null,"Apr"]
[null,null,null,null,null,null,null,null,null,null,"May"]
[null,null,null,null,null,null,null,null,null,null,"Jun"]
[null,null,null,null,null,null,null,null,null,null,"Jul"]
[null,null,null,null,null,null,null,null,null,null,"Aug"]
[null,null,null,null,null,null,null,null,null,null,"Sep"]
[null,null,null,null,null,null,null,null,null,null,"Oct"]
[null,null,null,null,null,null,null,null,null,null,"Nov"]
[null,null,null,null,null,null,null,null,null,null,"Dec"]
[null,null,null,null,null,null,null,null,null,null,"Annual",{"$f":"AVERAGE(L52:L63)","v":{"$error":"#DIV/0!"}},{"$f":"MAX(M52:M63)","v":0},{"$f":"AVERAGE(N52:N63)","v":{"$error":"#DIV/0!"}},{"$f":"MAX(O52:O63)","v":0}]
[]
[null,null,null,null,null,null,null,null,null,{"$f":"+A6","v":2020},"mg/Nm3","Monthly 1/2 hourly mean","Monthly 1/2 hourly maximum","Monthly daily mean","Monthly daily maximum"]
[null,null,null,null,null,null,null,null,null,"A5","Jan"]
[null,null,null,null,null,null,null,null,null,null,"Feb"]
[null,null,null,null,null,null,null,null,null,null,"Mar"]
[null,null,null,null,null,null,null,null,null,null,"Apr"]
[null,null,null,null,null,null,null,null,null,null,"May"]
[null,null,null,null,null,null,null,null,null,null,"Jun"]
[null,null,null,null,null,null,null,null,null,null,"Jul"]
[null,null,null,null,null,null,null,null,null,null,"Aug"]
[null,null,null,null,null,null,null,null,null,null,"Sep"]
[null,null,null,null,null,null,null,null,null,null,"Oct"]
[null,null,null,null,null,null,null,null,null,null,"Nov"]
[null,null,null,null,null,null,null,null,null,null,"Dec"]
[null,null,null,null,null,null,null,null,null,null,"Annual",{"$f":"AVERAGE(L67:L78)","v":{"$error":"#DIV/0!"}},{"$f":"MAX(M67:M78)","v":0},{"$f":"AVERAGE(N67:N78)","v":{"$error":"#DIV/0!"}},{"$f":"MAX(O67:O78)","v":0}]

{"sheet":"SO2","index":15,"n_rows":79,"n_cols":17,"rows_kept":79,"cut":false,"hidden":false,"merged":[[3,16,7,18],[9,16,11,18],[12,16,15,18],[66,9,78,9],[4,1,4,3],[4,4,4,6],[4,9,4,14],[6,9,18,9],[21,9,33,9],[36,9,48,9],[47,0,47,6],[48,0,51,6],[51,9,63,9]]}
[{"$f":"+'Cover Page'!$B$29","v":"Annual Performance Report 2020"},null,null,null,{"$f":"+'Cover Page'!$B$33","v":"Cornwall Energy Recovery Centre"}]
[]
["Monitoring of Sulphur dioxide emissions",null,null,"Whole Installation",null,null,"See  Notes in Cell Q3",null,null,{"$f":"+A3","v":"Monitoring of Sulphur dioxide emissions"},null,null,null,"Per Combustion Line",null,null,"Notes:"]
[null,null,null,null,null,null,null,null,null,null,null,null,null,null,null,null,"User to add logic to complete Whole installation, Table A5:G18. From the data in Per Combustion Line, Table J6:O79, subject to No. of lines installed"]
["mg/Nm3","1/2 Hourly Reference Periods",null,null,"Daily Reference Periods"]
[{"$f":"+'Cover Page'!C39","v":2020},"1/2 hourly SO2 ELV","Monthly 1/2 hourly mean","Highest 1/2 hourly maximum","Daily SO2 ELV","Monthly daily mean","Highest daily maximum",null,null,{"$f":"+A6","v":2020},"mg/Nm3","Monthly 1/2 hourly mean","Monthly 1/2 hourly maximum","Monthly daily mean","Monthly daily maximum"]
["Jan",200,{"$f":"AVERAGE(L7,L22)","v":6.5},{"$f":"AVERAGE(M7,M22)","v":35.5},50,{"$f":"AVERAGE(N7,N22)","v":6.5},{"$f":"AVERAGE(O7,O22)","v":12.5},null,null,"A1","Jan",10,41,10,19]
["Feb",200,{"$f":"AVERAGE(L8,L23)","v":7},27,50,{"$f":"AVERAGE(N8,N23)","v":7},14,null,null,null,"Feb",10,25,10,16]
["Mar",200,{"$f":"AVERAGE(L9,L24)","v":13},52,50,{"$f":"AVERAGE(N9,N24)","v":13},26.5,null,null,null,"Mar",21,68,21,38,null,"Whole Installation table A5:G18:"]
["Apr",200,{"$f":"AVERAGE(L10,L25)","v":17},50.5,50,{"$f":"AVERAGE(N10,N25)","v":17},36.5,null,null,null,"Apr",26,54,26,34,null,"Mean: for 1/2 hourly and daily periods calculate mean of values across all operational combustion lines for the month"]
["May",200,{"$f":"AVERAGE(L11,L26)","v":9},88,50,{"$f":"AVERAGE(N11,N26)","v":9},16,null,null,null,"May",16,143,16,25]
["Jun",200,{"$f":"AVERAGE(L12,L27)","v":5.5},50.5,50,{"$f":"AVERAGE(N12,N27)","v":5.5},14,null,null,null,"Jun",10,83,10,24]
["Jul",200,{"$f":"AVERAGE(L13,L28)","v":5.5},51,50,{"$f":"AVERAGE(N13,N28)","v":5.5},12.5,null,null,null,"Jul",9,57,9,19,null,"Maximum: for 1/2 hourly and daily periods use the highest value across all operational combustion lines for the month"]
["Aug",200,{"$f":"AVERAGE(L14,L29)","v":5},27.5,50,{"$f":"AVERAGE(N14,N29)","v":5},6.5,null,null,null,"Aug",8,38,8,9]
["Sep",200,{"$f":"AVERAGE(L15,L30)","v":6},37.5,50,{"$f":"AVERAGE(N15,N30)","v":6},12.5,null,null,null,"Sep",9,55,9,20]
["Oct",200,{"$f":"AVERAGE(L16,L31)","v":6.5},33,50,{"$f":"AVERAGE(N16,N31)","v":6.5},9,null,null,null,"Oct",10,41,10,13]
["Nov",200,{"$f":"AVERAGE(L17,L32)","v":5.5},56.5,50,{"$f":"AVERAGE(N17,N32)","v":5.5},9.5,null,null,null,"Nov",10,42,10,13]
["Dec",200,{"$f":"AVERAGE(L18,L33)","v":13},88,50,{"$f":"AVERAGE(N18,N33)","v":13},19.5,null,null,null,"Dec",13,109,13,19]
[null,null,null,null,null,null,null,null,null,null,"Annual",{"$f":"AVERAGE(L7:L18)","v":12.666666666666666},{"$f":"MAX(M7:M18)","v":143},{"$f":"AVERAGE(N7:N18)","v":12.666666666666666},{"$f":"MAX(O7:O18)","v":38}]
[]
[null,null,null,null,null,null,null,null,null,{"$f":"+A6","v":2020},"mg/Nm3","Monthly 1/2 hourly mean","Monthly 1/2 hourly maximum","Monthly daily mean","Monthly daily maximum"]
[null,null,null,null,null,null,null,null,null,"A2","Jan",3,30,3,6]
[null,null,null,null,null,null,null,null,null,null,"Feb",4,29,4,12]
[null,null,null,null,null,null,null,null,null,null,"Mar",5,36,5,15]
[null,null,null,null,null,null,null,null,null,null,"Apr",8,47,8,39]
[null,null,null,null,null,null,null,null,null,null,"May",2,33,2,7]
[null,null,null,null,null,null,null,null,null,null,"Jun",1,18,1,4]
[null,null,null,null,null,null,null,null,null,null,"Jul",2,45,2,6]
[null,null,null,null,null,null,null,null,null,null,"Aug",2,17,2,4]
[null,null,null,null,null,null,null,null,null,null,"Sep",3,20,3,5]
[null,null,null,null,null,null,null,null,null,null,"Oct",3,25,3,5]
[null,null,null,null,null,null,null,null,null,null,"Nov",1,71,1,6]
[null,null,null,null,null,null,null,null,null,null,"Dec",13,67,13,20]
[null,null,null,null,null,null,null,null,null,null,"Annual",{"$f":"AVERAGE(L22:L33)","v":3.9166666666666665},{"$f":"MAX(M22:M33)","v":71},{"$f":"AVERAGE(N22:N33)","v":3.9166666666666665},{"$f":"MAX(O22:O33)","v":39}]
[]
[null,null,null,null,null,null,null,null,null,{"$f":"+A6","v":2020},"mg/Nm3","Monthly 1/2 hourly mean","Monthly 1/2 hourly maximum","Monthly daily mean","Monthly daily maximum"]
[null,null,null,null,null,null,null,null,null,"A3","Jan"]
[null,null,null,null,null,null,null,null,null,null,"Feb"]
[null,null,null,null,null,null,null,null,null,null,"Mar"]
[null,null,null,null,null,null,null,null,null,null,"Apr"]
[null,null,null,null,null,null,null,null,null,null,"May"]
[null,null,null,null,null,null,null,null,null,null,"Jun"]
[null,null,null,null,null,null,null,null,null,null,"Jul"]
[null,null,null,null,null,null,null,null,null,null,"Aug"]
[null,null,null,null,null,null,null,null,null,null,"Sep"]
[null,null,null,null,null,null,null,null,null,null,"Oct"]
[null,null,null,null,null,null,null,null,null,null,"Nov"]
["Comments :",null,null,null,null,null,null,null,null,null,"Dec"]
[null,null,null,null,null,null,null,null,null,null,"Annual",{"$f":"AVERAGE(L37:L48)","v":{"$error":"#DIV/0!"}},{"$f":"MAX(M37:M48)","v":0},{"$f":"AVERAGE(N37:N48)","v":{"$error":"#DIV/0!"}},{"$f":"MAX(O37:O48)","v":0}]
[]
[null,null,null,null,null,null,null,null,null,{"$f":"+A6","v":2020},"mg/Nm3","Monthly 1/2 hourly mean","Monthly 1/2 hourly maximum","Monthly daily mean","Monthly daily maximum"]
[null,null,null,null,null,null,null,null,null,"A4","Jan"]
[null,null,null,null,null,null,null,null,null,null,"Feb"]
[null,null,null,null,null,null,null,null,null,null,"Mar"]
[null,null,null,null,null,null,null,null,null,null,"Apr"]
[null,null,null,null,null,null,null,null,null,null,"May"]
[null,null,null,null,null,null,null,null,null,null,"Jun"]
[null,null,null,null,null,null,null,null,null,null,"Jul"]
[null,null,null,null,null,null,null,null,null,null,"Aug"]
[null,null,null,null,null,null,null,null,null,null,"Sep"]
[null,null,null,null,null,null,null,null,null,null,"Oct"]
[null,null,null,null,null,null,null,null,null,null,"Nov"]
[null,null,null,null,null,null,null,null,null,null,"Dec"]
[null,null,null,null,null,null,null,null,null,null,"Annual",{"$f":"AVERAGE(L52:L63)","v":{"$error":"#DIV/0!"}},{"$f":"MAX(M52:M63)","v":0},{"$f":"AVERAGE(N52:N63)","v":{"$error":"#DIV/0!"}},{"$f":"MAX(O52:O63)","v":0}]
[]
[null,null,null,null,null,null,null,null,null,{"$f":"+A6","v":2020},"mg/Nm3","Monthly 1/2 hourly mean","Monthly 1/2 hourly maximum","Monthly daily mean","Monthly daily maximum"]
[null,null,null,null,null,null,null,null,null,"A5","Jan"]
[null,null,null,null,null,null,null,null,null,null,"Feb"]
[null,null,null,null,null,null,null,null,null,null,"Mar"]
[null,null,null,null,null,null,null,null,null,null,"Apr"]
[null,null,null,null,null,null,null,null,null,null,"May"]
[null,null,null,null,null,null,null,null,null,null,"Jun"]
[null,null,null,null,null,null,null,null,null,null,"Jul"]
[null,null,null,null,null,null,null,null,null,null,"Aug"]
[null,null,null,null,null,null,null,null,null,null,"Sep"]
[null,null,null,null,null,null,null,null,null,null,"Oct"]
[null,null,null,null,null,null,null,null,null,null,"Nov"]
[null,null,null,null,null,null,null,null,null,null,"Dec"]
[null,null,null,null,null,null,null,null,null,null,"Annual",{"$f":"AVERAGE(L67:L78)","v":{"$error":"#DIV/0!"}},{"$f":"MAX(M67:M78)","v":0},{"$f":"AVERAGE(N67:N78)","v":{"$error":"#DIV/0!"}},{"$f":"MAX(O67:O78)","v":0}]

{"sheet":"NOx","index":16,"n_rows":79,"n_cols":17,"rows_kept":79,"cut":false,"hidden":false,"merged":[[3,16,7,18],[9,16,11,18],[12,16,15,18],[66,9,78,9],[4,1,4,3],[4,4,4,6],[4,9,4,14],[6,9,18,9],[21,9,33,9],[36,9,48,9],[47,0,47,6],[48,0,51,6],[51,9,63,9]]}
[{"$f":"+'Cover Page'!$B$29","v":"Annual Performance Report 2020"},null,null,null,{"$f":"+'Cover Page'!$B$33","v":"Cornwall Energy Recovery Centre"}]
[]
["Monitoring of Oxides of Nitrogen emissions",null,null,"Whole Installation",null,null,"See  Notes in Cell Q3",null,null,{"$f":"+A3","v":"Monitoring of Oxides of Nitrogen emissions"},null,null,null,"Per Combustion Line",null,null,"Notes:"]
[null,null,null,null,null,null,null,null,null,null,null,null,null,null,null,null,"User to add logic to complete Whole installation, Table A5:G18. From the data in Per Combustion Line, Table J6:O79, subject to No. of lines installed"]
["mg/Nm3","1/2 Hourly Reference Periods",null,null,"Daily Reference Periods"]
[{"$f":"+'Cover Page'!C39","v":2020},"1/2 hourly NOx ELV","Monthly 1/2 hourly mean","Highest 1/2 hourly maximum","Daily NOx ELV","Monthly daily mean","Highest daily maximum",null,null,{"$f":"+A6","v":2020},"mg/Nm3","Monthly 1/2 hourly mean","Monthly 1/2 hourly maximum","Monthly daily mean","Monthly daily maximum"]
["Jan",400,{"$f":"AVERAGE(L7,L22)","v":143},{"$f":"AVERAGE(M7,M22)","v":163.5},200,{"$f":"AVERAGE(N7,N22)","v":143},{"$f":"AVERAGE(O7,O22)","v":149},null,null,"A1","Jan",141,162,141,149]
["Feb",400,{"$f":"AVERAGE(L8,L23)","v":124},151.5,200,{"$f":"AVERAGE(N8,N23)","v":124},139.5,null,null,null,"Feb",125,152,125,139]
["Mar",400,{"$f":"AVERAGE(L9,L24)","v":123},153,200,{"$f":"AVERAGE(N9,N24)","v":123},135,null,null,null,"Mar",117,147,117,124,null,"Whole Installation table A5:G18:"]
["Apr",400,{"$f":"AVERAGE(L10,L25)","v":111},148,200,{"$f":"AVERAGE(N10,N25)","v":111},134,null,null,null,"Apr",111,144,111,127,null,"Mean: for 1/2 hourly and daily periods calculate mean of values across all operational combustion lines for the month"]
["May",400,{"$f":"AVERAGE(L11,L26)","v":109.5},134.5,200,{"$f":"AVERAGE(N11,N26)","v":109.5},117,null,null,null,"May",106,133,106,111]
["Jun",400,{"$f":"AVERAGE(L12,L27)","v":129.5},158.5,200,{"$f":"AVERAGE(N12,N27)","v":129.5},145.5,null,null,null,"Jun",127,157,127,145]
["Jul",400,{"$f":"AVERAGE(L13,L28)","v":137.5},156.5,200,{"$f":"AVERAGE(N13,N28)","v":137.5},143.5,null,null,null,"Jul",139,157,139,142,null,"Maximum: for 1/2 hourly and daily periods use the highest value across all operational combustion lines for the month"]
["Aug",400,{"$f":"AVERAGE(L14,L29)","v":142},165.5,200,{"$f":"AVERAGE(N14,N29)","v":142},148,null,null,null,"Aug",142,171,142,146]
["Sep",400,{"$f":"AVERAGE(L15,L30)","v":144.5},160.5,200,{"$f":"AVERAGE(N15,N30)","v":144.5},148.5,null,null,null,"Sep",143,162,143,147]
["Oct",400,{"$f":"AVERAGE(L16,L31)","v":142},157.5,200,{"$f":"AVERAGE(N16,N31)","v":142},147,null,null,null,"Oct",142,156,142,146]
["Nov",400,{"$f":"AVERAGE(L17,L32)","v":141},309.5,200,{"$f":"AVERAGE(N17,N32)","v":141},144.5,null,null,null,"Nov",140,459,140,145]
["Dec",400,{"$f":"AVERAGE(L18,L33)","v":137.5},160.5,200,{"$f":"AVERAGE(N18,N33)","v":137.5},145,null,null,null,"Dec",138,158,138,147]
[null,null,null,null,null,null,null,null,null,null,"Annual",{"$f":"AVERAGE(L7:L18)","v":130.91666666666666},{"$f":"MAX(M7:M18)","v":459},{"$f":"AVERAGE(N7:N18)","v":130.91666666666666},{"$f":"MAX(O7:O18)","v":149}]
[]
[null,null,null,null,null,null,null,null,null,{"$f":"+A6","v":2020},"mg/Nm3","Monthly 1/2 hourly mean","Monthly 1/2 hourly maximum","Monthly daily mean","Monthly daily maximum"]
[null,null,null,null,null,null,null,null,null,"A2","Jan",145,165,145,149]
[null,null,null,null,null,null,null,null,null,null,"Feb",123,151,123,140]
[null,null,null,null,null,null,null,null,null,null,"Mar",129,159,129,146]
[null,null,null,null,null,null,null,null,null,null,"Apr",111,152,111,141]
[null,null,null,null,null,null,null,null,null,null,"May",113,136,113,123]
[null,null,null,null,null,null,null,null,null,null,"Jun",132,160,132,146]
[null,null,null,null,null,null,null,null,null,null,"Jul",136,156,136,145]
[null,null,null,null,null,null,null,null,null,null,"Aug",142,160,142,150]
[null,null,null,null,null,null,null,null,null,null,"Sep",146,159,146,150]
[null,null,null,null,null,null,null,null,null,null,"Oct",142,159,142,148]
[null,null,null,null,null,null,null,null,null,null,"Nov",142,160,142,144]
[null,null,null,null,null,null,null,null,null,null,"Dec",137,163,137,143]
[null,null,null,null,null,null,null,null,null,null,"Annual",{"$f":"AVERAGE(L22:L33)","v":133.16666666666666},{"$f":"MAX(M22:M33)","v":165},{"$f":"AVERAGE(N22:N33)","v":133.16666666666666},{"$f":"MAX(O22:O33)","v":150}]
[]
[null,null,null,null,null,null,null,null,null,{"$f":"+A6","v":2020},"mg/Nm3","Monthly 1/2 hourly mean","Monthly 1/2 hourly maximum","Monthly daily mean","Monthly daily maximum"]
[null,null,null,null,null,null,null,null,null,"A3","Jan"]
[null,null,null,null,null,null,null,null,null,null,"Feb"]
[null,null,null,null,null,null,null,null,null,null,"Mar"]
[null,null,null,null,null,null,null,null,null,null,"Apr"]
[null,null,null,null,null,null,null,null,null,null,"May"]
[null,null,null,null,null,null,null,null,null,null,"Jun"]
[null,null,null,null,null,null,null,null,null,null,"Jul"]
[null,null,null,null,null,null,null,null,null,null,"Aug"]
[null,null,null,null,null,null,null,null,null,null,"Sep"]
[null,null,null,null,null,null,null,null,null,null,"Oct"]
[null,null,null,null,null,null,null,null,null,null,"Nov"]
["Comments :",null,null,null,null,null,null,null,null,null,"Dec"]
[null,null,null,null,null,null,null,null,null,null,"Annual",{"$f":"AVERAGE(L37:L48)","v":{"$error":"#DIV/0!"}},{"$f":"MAX(M37:M48)","v":0},{"$f":"AVERAGE(N37:N48)","v":{"$error":"#DIV/0!"}},{"$f":"MAX(O37:O48)","v":0}]
[]
[null,null,null,null,null,null,null,null,null,{"$f":"+A6","v":2020},"mg/Nm3","Monthly 1/2 hourly mean","Monthly 1/2 hourly maximum","Monthly daily mean","Monthly daily maximum"]
[null,null,null,null,null,null,null,null,null,"A4","Jan"]
[null,null,null,null,null,null,null,null,null,null,"Feb"]
[null,null,null,null,null,null,null,null,null,null,"Mar"]
[null,null,null,null,null,null,null,null,null,null,"Apr"]
[null,null,null,null,null,null,null,null,null,null,"May"]
[null,null,null,null,null,null,null,null,null,null,"Jun"]
[null,null,null,null,null,null,null,null,null,null,"Jul"]
[null,null,null,null,null,null,null,null,null,null,"Aug"]
[null,null,null,null,null,null,null,null,null,null,"Sep"]
[null,null,null,null,null,null,null,null,null,null,"Oct"]
[null,null,null,null,null,null,null,null,null,null,"Nov"]
[null,null,null,null,null,null,null,null,null,null,"Dec"]
[null,null,null,null,null,null,null,null,null,null,"Annual",{"$f":"AVERAGE(L52:L63)","v":{"$error":"#DIV/0!"}},{"$f":"MAX(M52:M63)","v":0},{"$f":"AVERAGE(N52:N63)","v":{"$error":"#DIV/0!"}},{"$f":"MAX(O52:O63)","v":0}]
[]
[null,null,null,null,null,null,null,null,null,{"$f":"+A6","v":2020},"mg/Nm3","Monthly 1/2 hourly mean","Monthly 1/2 hourly maximum","Monthly daily mean","Monthly daily maximum"]
[null,null,null,null,null,null,null,null,null,"A5","Jan"]
[null,null,null,null,null,null,null,null,null,null,"Feb"]
[null,null,null,null,null,null,null,null,null,null,"Mar"]
[null,null,null,null,null,null,null,null,null,null,"Apr"]
[null,null,null,null,null,null,null,null,null,null,"May"]
[null,null,null,null,null,null,null,null,null,null,"Jun"]
[null,null,null,null,null,null,null,null,null,null,"Jul"]
[null,null,null,null,null,null,null,null,null,null,"Aug"]
[null,null,null,null,null,null,null,null,null,null,"Sep"]
[null,null,null,null,null,null,null,null,null,null,"Oct"]
[null,null,null,null,null,null,null,null,null,null,"Nov"]
[null,null,null,null,null,null,null,null,null,null,"Dec"]
[null,null,null,null,null,null,null,null,null,null,"Annual",{"$f":"AVERAGE(L67:L78)","v":{"$error":"#DIV/0!"}},{"$f":"MAX(M67:M78)","v":0},{"$f":"AVERAGE(N67:N78)","v":{"$error":"#DIV/0!"}},{"$f":"MAX(O67:O78)","v":0}]

{"sheet":"TOC","index":17,"n_rows":79,"n_cols":17,"rows_kept":79,"cut":false,"hidden":false,"merged":[[3,16,7,18],[9,16,11,18],[12,16,15,18],[66,9,78,9],[4,1,4,3],[4,4,4,6],[4,9,4,14],[6,9,18,9],[21,9,33,9],[36,9,48,9],[47,0,47,6],[48,0,51,6],[51,9,63,9]]}
[{"$f":"+'Cover Page'!$B$29","v":"Annual Performance Report 2020"},null,null,null,{"$f":"+'Cover Page'!$B$33","v":"Cornwall Energy Recovery Centre"}]
[]
["Monitoring of Total organic carbon emissions",null,null,"Whole Installation",null,null,"See  Notes in Cell Q3",null,null,{"$f":"+A3","v":"Monitoring of Total organic carbon emissions"},null,null,null,"Per Combustion Line",null,null,"Notes:"]
[null,null,null,null,null,null,null,null,null,null,null,null,null,null,null,null,"User to add logic to complete Whole installation, Table A5:G18. From the data in Per Combustion Line, Table J6:O79, subject to No. of lines installed"]
["mg/Nm3","1/2 Hourly Reference Periods",null,null,"Daily Reference Periods"]
[{"$f":"+'Cover Page'!C39","v":2020},"1/2 hourly TOC ELV","Monthly 1/2 hourly mean","Highest 1/2 hourly maximum","Daily TOC ELV","Monthly daily mean","Highest daily maximum",null,null,{"$f":"+A6","v":2020},"mg/Nm3","Monthly 1/2 hourly mean","Monthly 1/2 hourly maximum","Monthly daily mean","Monthly daily maximum"]
["Jan",20,{"$f":"AVERAGE(L7,L22)","v":0.5},{"$f":"AVERAGE(M7,M22)","v":6},10,{"$f":"AVERAGE(N7,N22)","v":0.5},{"$f":"AVERAGE(O7,O22)","v":0.5},null,null,"A1","Jan",1,9,1,1]
["Feb",20,{"$f":"AVERAGE(L8,L23)","v":0},2,10,{"$f":"AVERAGE(N8,N23)","v":0},1,null,null,null,"Feb",0,1,0,1]
["Mar",20,{"$f":"AVERAGE(L9,L24)","v":0},2.5,10,{"$f":"AVERAGE(N9,N24)","v":0},0.5,null,null,null,"Mar",0,2,0,1,null,"Whole Installation table A5:G18:"]
["Apr",20,{"$f":"AVERAGE(L10,L25)","v":0.5},3,10,{"$f":"AVERAGE(N10,N25)","v":0.5},0.5,null,null,null,"Apr",1,3,1,1,null,"Mean: for 1/2 hourly and daily periods calculate mean of values across all operational combustion lines for the month"]
["May",20,{"$f":"AVERAGE(L11,L26)","v":0.5},2.5,10,{"$f":"AVERAGE(N11,N26)","v":0.5},0.5,null,null,null,"May",1,1,1,1]
["Jun",20,{"$f":"AVERAGE(L12,L27)","v":0},5,10,{"$f":"AVERAGE(N12,N27)","v":0},0.5,null,null,null,"Jun",0,4,0,1]
["Jul",20,{"$f":"AVERAGE(L13,L28)","v":0},4,10,{"$f":"AVERAGE(N13,N28)","v":0},1,null,null,null,"Jul",0,4,0,1,null,"Maximum: for 1/2 hourly and daily periods use the highest value across all operational combustion lines for the month"]
["Aug",20,{"$f":"AVERAGE(L14,L29)","v":0},3.5,10,{"$f":"AVERAGE(N14,N29)","v":0},1,null,null,null,"Aug",0,2,0,1]
["Sep",20,{"$f":"AVERAGE(L15,L30)","v":0},2,10,{"$f":"AVERAGE(N15,N30)","v":0},0,null,null,null,"Sep",0,2,0,0]
["Oct",20,{"$f":"AVERAGE(L16,L31)","v":0},2,10,{"$f":"AVERAGE(N16,N31)","v":0},0.5,null,null,null,"Oct",0,1,0,1]
["Nov",20,{"$f":"AVERAGE(L17,L32)","v":0.30000000000000004},3.6,10,{"$f":"AVERAGE(N17,N32)","v":0.30000000000000004},0.44999999999999996,null,null,null,"Nov",0.4,3.5,0.4,0.6]
["Dec",20,{"$f":"AVERAGE(L18,L33)","v":0},2.6,10,{"$f":"AVERAGE(N18,N33)","v":0},1,null,null,null,"Dec",0,0.2,0,1]
[null,null,null,null,null,null,null,null,null,null,"Annual",{"$f":"AVERAGE(L7:L18)","v":0.28333333333333333},{"$f":"MAX(M7:M18)","v":9},{"$f":"AVERAGE(N7:N18)","v":0.28333333333333333},{"$f":"MAX(O7:O18)","v":1}]
[]
[null,null,null,null,null,null,null,null,null,{"$f":"+A6","v":2020},"mg/Nm3","Monthly 1/2 hourly mean","Monthly 1/2 hourly maximum","Monthly daily mean","Monthly daily maximum"]
[null,null,null,null,null,null,null,null,null,"A2","Jan",0,3,0,0]
[null,null,null,null,null,null,null,null,null,null,"Feb",0,3,0,1]
[null,null,null,null,null,null,null,null,null,null,"Mar",0,3,0,0]
[null,null,null,null,null,null,null,null,null,null,"Apr",0,3,0,0]
[null,null,null,null,null,null,null,null,null,null,"May",0,4,0,0]
[null,null,null,null,null,null,null,null,null,null,"Jun",0,6,0,0]
[null,null,null,null,null,null,null,null,null,null,"Jul",0,4,0,1]
[null,null,null,null,null,null,null,null,null,null,"Aug",0,5,0,1]
[null,null,null,null,null,null,null,null,null,null,"Sep",0,2,0,0]
[null,null,null,null,null,null,null,null,null,null,"Oct",0,3,0,0]
[null,null,null,null,null,null,null,null,null,null,"Nov",0.2,3.7,0.2,0.3]
[null,null,null,null,null,null,null,null,null,null,"Dec",0,5,0,1]
[null,null,null,null,null,null,null,null,null,null,"Annual",{"$f":"AVERAGE(L22:L33)","v":1.6666666666666666E-2},{"$f":"MAX(M22:M33)","v":6},{"$f":"AVERAGE(N22:N33)","v":1.6666666666666666E-2},{"$f":"MAX(O22:O33)","v":1}]
[]
[null,null,null,null,null,null,null,null,null,{"$f":"+A6","v":2020},"mg/Nm3","Monthly 1/2 hourly mean","Monthly 1/2 hourly maximum","Monthly daily mean","Monthly daily maximum"]
[null,null,null,null,null,null,null,null,null,"A3","Jan"]
[null,null,null,null,null,null,null,null,null,null,"Feb"]
[null,null,null,null,null,null,null,null,null,null,"Mar"]
[null,null,null,null,null,null,null,null,null,null,"Apr"]
[null,null,null,null,null,null,null,null,null,null,"May"]
[null,null,null,null,null,null,null,null,null,null,"Jun"]
[null,null,null,null,null,null,null,null,null,null,"Jul"]
[null,null,null,null,null,null,null,null,null,null,"Aug"]
[null,null,null,null,null,null,null,null,null,null,"Sep"]
[null,null,null,null,null,null,null,null,null,null,"Oct"]
[null,null,null,null,null,null,null,null,null,null,"Nov"]
["Comments :",null,null,null,null,null,null,null,null,null,"Dec"]
[null,null,null,null,null,null,null,null,null,null,"Annual",{"$f":"AVERAGE(L37:L48)","v":{"$error":"#DIV/0!"}},{"$f":"MAX(M37:M48)","v":0},{"$f":"AVERAGE(N37:N48)","v":{"$error":"#DIV/0!"}},{"$f":"MAX(O37:O48)","v":0}]
[]
[null,null,null,null,null,null,null,null,null,{"$f":"+A6","v":2020},"mg/Nm3","Monthly 1/2 hourly mean","Monthly 1/2 hourly maximum","Monthly daily mean","Monthly daily maximum"]
[null,null,null,null,null,null,null,null,null,"A4","Jan"]
[null,null,null,null,null,null,null,null,null,null,"Feb"]
[null,null,null,null,null,null,null,null,null,null,"Mar"]
[null,null,null,null,null,null,null,null,null,null,"Apr"]
[null,null,null,null,null,null,null,null,null,null,"May"]
[null,null,null,null,null,null,null,null,null,null,"Jun"]
[null,null,null,null,null,null,null,null,null,null,"Jul"]
[null,null,null,null,null,null,null,null,null,null,"Aug"]
[null,null,null,null,null,null,null,null,null,null,"Sep"]
[null,null,null,null,null,null,null,null,null,null,"Oct"]
[null,null,null,null,null,null,null,null,null,null,"Nov"]
[null,null,null,null,null,null,null,null,null,null,"Dec"]
[null,null,null,null,null,null,null,null,null,null,"Annual",{"$f":"AVERAGE(L52:L63)","v":{"$error":"#DIV/0!"}},{"$f":"MAX(M52:M63)","v":0},{"$f":"AVERAGE(N52:N63)","v":{"$error":"#DIV/0!"}},{"$f":"MAX(O52:O63)","v":0}]
[]
[null,null,null,null,null,null,null,null,null,{"$f":"+A6","v":2020},"mg/Nm3","Monthly 1/2 hourly mean","Monthly 1/2 hourly maximum","Monthly daily mean","Monthly daily maximum"]
[null,null,null,null,null,null,null,null,null,"A5","Jan"]
[null,null,null,null,null,null,null,null,null,null,"Feb"]
[null,null,null,null,null,null,null,null,null,null,"Mar"]
[null,null,null,null,null,null,null,null,null,null,"Apr"]
[null,null,null,null,null,null,null,null,null,null,"May"]
[null,null,null,null,null,null,null,null,null,null,"Jun"]
[null,null,null,null,null,null,null,null,null,null,"Jul"]
[null,null,null,null,null,null,null,null,null,null,"Aug"]
[null,null,null,null,null,null,null,null,null,null,"Sep"]
[null,null,null,null,null,null,null,null,null,null,"Oct"]
[null,null,null,null,null,null,null,null,null,null,"Nov"]
[null,null,null,null,null,null,null,null,null,null,"Dec"]
[null,null,null,null,null,null,null,null,null,null,"Annual",{"$f":"AVERAGE(L67:L78)","v":{"$error":"#DIV/0!"}},{"$f":"MAX(M67:M78)","v":0},{"$f":"AVERAGE(N67:N78)","v":{"$error":"#DIV/0!"}},{"$f":"MAX(O67:O78)","v":0}]

{"sheet":"Particulates","index":18,"n_rows":79,"n_cols":17,"rows_kept":79,"cut":false,"hidden":false,"merged":[[3,16,7,18],[9,16,11,18],[12,16,15,18],[66,9,78,9],[4,1,4,3],[4,4,4,6],[4,9,4,14],[6,9,18,9],[21,9,33,9],[36,9,48,9],[47,0,47,6],[48,0,51,6],[51,9,63,9]]}
[{"$f":"+'Cover Page'!$B$29","v":"Annual Performance Report 2020"},null,null,null,{"$f":"+'Cover Page'!$B$33","v":"Cornwall Energy Recovery Centre"}]
[]
["Monitoring of Particulate matter emissions",null,null,"Whole Installation",null,null,"See  Notes in Cell Q3",null,null,{"$f":"+A3","v":"Monitoring of Particulate matter emissions"},null,null,null,"Per Combustion Line",null,null,"Notes:"]
[null,null,null,null,null,null,null,null,null,null,null,null,null,null,null,null,"User to add logic to complete Whole installation, Table A5:G18. From the data in Per Combustion Line, Table J6:O79, subject to No. of lines installed"]
["mg/Nm3","1/2 Hourly Reference Periods",null,null,"Daily Reference Periods"]
[{"$f":"+'Cover Page'!C39","v":2020},"1/2 hourly PM ELV","Monthly 1/2 hourly mean","Highest 1/2 hourly maximum","Daily PM ELV","Monthly daily mean","Highest daily maximum",null,null,{"$f":"+A6","v":2020},"mg/Nm3","Monthly 1/2 hourly mean","Monthly 1/2 hourly maximum","Monthly daily mean","Monthly daily maximum"]
["Jan",30,{"$f":"AVERAGE(L7,L22)","v":0.5},{"$f":"AVERAGE(M7,M22)","v":1.5},10,{"$f":"AVERAGE(N7,N22)","v":0.5},{"$f":"AVERAGE(O7,O22)","v":1},null,null,"A1","Jan",0,1,0,0]
["Feb",30,{"$f":"AVERAGE(L8,L23)","v":0.5},1.5,10,{"$f":"AVERAGE(N8,N23)","v":0.5},1,null,null,null,"Feb",0,1,0,0]
["Mar",30,{"$f":"AVERAGE(L9,L24)","v":0.5},2,10,0.5,0.5,null,null,null,"Mar",0,1,0,0,null,"Whole Installation table A5:G18:"]
["Apr",30,{"$f":"AVERAGE(L10,L25)","v":0.5},0.5,10,0.5,0.5,null,null,null,"Apr",0,0,0,0,null,"Mean: for 1/2 hourly and daily periods calculate mean of values across all operational combustion lines for the month"]
["May",30,{"$f":"AVERAGE(L11,L26)","v":0.5},1,10,0.5,0.5,null,null,null,"May",0,1,0,0]
["Jun",30,{"$f":"AVERAGE(L12,L27)","v":0.5},14,10,0.5,2,null,null,null,"Jun",1,26,1,3]
["Jul",30,{"$f":"AVERAGE(L13,L28)","v":0.5},0.5,10,0.5,0.5,null,null,null,"Jul",1,1,1,1,null,"Maximum: for 1/2 hourly and daily periods use the highest value across all operational combustion lines for the month"]
["Aug",30,{"$f":"AVERAGE(L14,L29)","v":0.5},44,10,0.5,2,null,null,null,"Aug",1,49,1,2]
["Sep",30,{"$f":"AVERAGE(L15,L30)","v":0.5},18,10,0.5,1,null,null,null,"Sep",1,35,1,2]
["Oct",30,{"$f":"AVERAGE(L16,L31)","v":1},1,10,1,1,null,null,null,"Oct",1,1,1,1]
["Nov",30,{"$f":"AVERAGE(L17,L32)","v":0.7},48.5,10,0.7,2.5499999999999998,null,null,null,"Nov",0.7,71.400000000000006,0.7,3]
["Dec",30,{"$f":"AVERAGE(L18,L33)","v":1},11,10,1,1,null,null,null,"Dec",1,18,1,1]
[null,null,null,null,null,null,null,null,null,null,"Annual",{"$f":"AVERAGE(L7:L18)","v":0.55833333333333335},{"$f":"MAX(M7:M18)","v":71.400000000000006},{"$f":"AVERAGE(N7:N18)","v":0.55833333333333335},{"$f":"MAX(O7:O18)","v":3}]
[]
[null,null,null,null,null,null,null,null,null,{"$f":"+A6","v":2020},"mg/Nm3","Monthly 1/2 hourly mean","Monthly 1/2 hourly maximum","Monthly daily mean","Monthly daily maximum"]
[null,null,null,null,null,null,null,null,null,"A2","Jan",1,2,1,2]
[null,null,null,null,null,null,null,null,null,null,"Feb",1,2,1,2]
[null,null,null,null,null,null,null,null,null,null,"Mar",1,3,1,1]
[null,null,null,null,null,null,null,null,null,null,"Apr",1,1,1,1]
[null,null,null,null,null,null,null,null,null,null,"May",1,1,1,1]
[null,null,null,null,null,null,null,null,null,null,"Jun",0,2,0,1]
[null,null,null,null,null,null,null,null,null,null,"Jul",0,0,0,0]
[null,null,null,null,null,null,null,null,null,null,"Aug",0,39,0,2]
[null,null,null,null,null,null,null,null,null,null,"Sep",0,1,0,0]
[null,null,null,null,null,null,null,null,null,null,"Oct",1,1,1,1]
[null,null,null,null,null,null,null,null,null,null,"Nov",0.7,25.6,0.7,2.1]
[null,null,null,null,null,null,null,null,null,null,"Dec",1,4,1,1]
[null,null,null,null,null,null,null,null,null,null,"Annual",{"$f":"AVERAGE(L22:L33)","v":0.64166666666666672},{"$f":"MAX(M22:M33)","v":39},{"$f":"AVERAGE(N22:N33)","v":0.64166666666666672},{"$f":"MAX(O22:O33)","v":2.1}]
[]
[null,null,null,null,null,null,null,null,null,{"$f":"+A6","v":2020},"mg/Nm3","Monthly 1/2 hourly mean","Monthly 1/2 hourly maximum","Monthly daily mean","Monthly daily maximum"]
[null,null,null,null,null,null,null,null,null,"A3","Jan"]
[null,null,null,null,null,null,null,null,null,null,"Feb"]
[null,null,null,null,null,null,null,null,null,null,"Mar"]
[null,null,null,null,null,null,null,null,null,null,"Apr"]
[null,null,null,null,null,null,null,null,null,null,"May"]
[null,null,null,null,null,null,null,null,null,null,"Jun"]
[null,null,null,null,null,null,null,null,null,null,"Jul"]
[null,null,null,null,null,null,null,null,null,null,"Aug"]
[null,null,null,null,null,null,null,null,null,null,"Sep"]
[null,null,null,null,null,null,null,null,null,null,"Oct"]
[null,null,null,null,null,null,null,null,null,null,"Nov"]
["Comments :",null,null,null,null,null,null,null,null,null,"Dec"]
[null,null,null,null,null,null,null,null,null,null,"Annual",{"$f":"AVERAGE(L37:L48)","v":{"$error":"#DIV/0!"}},{"$f":"MAX(M37:M48)","v":0},{"$f":"AVERAGE(N37:N48)","v":{"$error":"#DIV/0!"}},{"$f":"MAX(O37:O48)","v":0}]
[]
[null,null,null,null,null,null,null,null,null,{"$f":"+A6","v":2020},"mg/Nm3","Monthly 1/2 hourly mean","Monthly 1/2 hourly maximum","Monthly daily mean","Monthly daily maximum"]
[null,null,null,null,null,null,null,null,null,"A4","Jan"]
[null,null,null,null,null,null,null,null,null,null,"Feb"]
[null,null,null,null,null,null,null,null,null,null,"Mar"]
[null,null,null,null,null,null,null,null,null,null,"Apr"]
[null,null,null,null,null,null,null,null,null,null,"May"]
[null,null,null,null,null,null,null,null,null,null,"Jun"]
[null,null,null,null,null,null,null,null,null,null,"Jul"]
[null,null,null,null,null,null,null,null,null,null,"Aug"]
[null,null,null,null,null,null,null,null,null,null,"Sep"]
[null,null,null,null,null,null,null,null,null,null,"Oct"]
[null,null,null,null,null,null,null,null,null,null,"Nov"]
[null,null,null,null,null,null,null,null,null,null,"Dec"]
[null,null,null,null,null,null,null,null,null,null,"Annual",{"$f":"AVERAGE(L52:L63)","v":{"$error":"#DIV/0!"}},{"$f":"MAX(M52:M63)","v":0},{"$f":"AVERAGE(N52:N63)","v":{"$error":"#DIV/0!"}},{"$f":"MAX(O52:O63)","v":0}]
[]
[null,null,null,null,null,null,null,null,null,{"$f":"+A6","v":2020},"mg/Nm3","Monthly 1/2 hourly mean","Monthly 1/2 hourly maximum","Monthly daily mean","Monthly daily maximum"]
[null,null,null,null,null,null,null,null,null,"A5","Jan"]
[null,null,null,null,null,null,null,null,null,null,"Feb"]
[null,null,null,null,null,null,null,null,null,null,"Mar"]
[null,null,null,null,null,null,null,null,null,null,"Apr"]
[null,null,null,null,null,null,null,null,null,null,"May"]
[null,null,null,null,null,null,null,null,null,null,"Jun"]
[null,null,null,null,null,null,null,null,null,null,"Jul"]
[null,null,null,null,null,null,null,null,null,null,"Aug"]
[null,null,null,null,null,null,null,null,null,null,"Sep"]
[null,null,null,null,null,null,null,null,null,null,"Oct"]
[null,null,null,null,null,null,null,null,null,null,"Nov"]
[null,null,null,null,null,null,null,null,null,null,"Dec"]
[null,null,null,null,null,null,null,null,null,null,"Annual",{"$f":"AVERAGE(L67:L78)","v":{"$error":"#DIV/0!"}},{"$f":"MAX(M67:M78)","v":0},{"$f":"AVERAGE(N67:N78)","v":{"$error":"#DIV/0!"}},{"$f":"MAX(O67:O78)","v":0}]

{"sheet":"CO 0.5hourly","index":19,"n_rows":79,"n_cols":17,"rows_kept":79,"cut":false,"hidden":false,"merged":[[3,16,7,18],[9,16,11,18],[12,16,15,18],[66,9,78,9],[4,1,4,3],[4,4,4,6],[4,9,4,14],[6,9,18,9],[21,9,33,9],[36,9,48,9],[47,0,47,6],[48,0,51,6],[51,9,63,9]]}
[{"$f":"+'Cover Page'!$B$29","v":"Annual Performance Report 2020"},null,null,null,{"$f":"+'Cover Page'!$B$33","v":"Cornwall Energy Recovery Centre"}]
[]
["Monitoring of Carbon Monoxide (half hourly)",null,null,"Whole Installation",null,null,"See  Notes in Cell Q3",null,null,{"$f":"+A3","v":"Monitoring of Carbon Monoxide (half hourly)"},null,null,null,"Per Combustion Line",null,null,"Notes:"]
[null,null,null,null,null,null,null,null,null,null,null,null,null,null,null,null,"User to add logic to complete Whole installation, Table A5:G18. From the data in Per Combustion Line, Table J6:O79, subject to No. of lines installed"]
["mg/Nm3","1/2 Hourly Reference Periods",null,null,"Daily Reference Periods"]
[{"$f":"+'Cover Page'!C39","v":2020},"1/2 hourly CO ELV","Monthly 1/2 hourly mean","Highest 1/2 hourly maximum","Daily CO ELV","Monthly daily mean","Highest daily maximum",null,null,{"$f":"+A6","v":2020},"mg/Nm3","Monthly 1/2 hourly mean","Monthly 1/2 hourly maximum","Monthly daily mean","Monthly daily maximum"]
["Jan",100,{"$f":"AVERAGE(L7,L22)","v":12.5},{"$f":"AVERAGE(M7,M22)","v":118.5},50,{"$f":"AVERAGE(N7,N22)","v":12.5},{"$f":"AVERAGE(O7,O22)","v":17},null,null,"A1","Jan",12,169,12,18]
["Feb",{"$f":"+B7","v":100},{"$f":"AVERAGE(L8,L23)","v":10.5},88.5,{"$f":"+E7","v":50},{"$f":"AVERAGE(N8,N23)","v":10.5},16,null,null,null,"Feb",10,80,10,15]
["Mar",{"$f":"+B8","v":100},12.5,114,{"$f":"+E8","v":50},12.5,30.5,null,null,null,"Mar",13,120,13,38,null,"Whole Installation table A5:G18:"]
["Apr",100,6.5,72.5,50,6.5,11,null,null,null,"Apr",6,80,6,9,null,"Mean: for 1/2 hourly and daily periods calculate mean of values across all operational combustion lines for the month"]
["May",100,4.5,91.5,50,4.5,8,null,null,null,"May",5,69,5,7]
["Jun",100,7.5,119,50,7.5,19.5,null,null,null,"Jun",6,87,6,9]
["Jul",100,6.5,103,50,6.5,11,null,null,null,"Jul",7,78,7,11,null,"Maximum: for 1/2 hourly and daily periods use the highest value across all operational combustion lines for the month"]
["Aug",100,7,104,50,7,11,null,null,null,"Aug",7,92,7,9]
["Sep",100,6.5,73.5,50,6.5,11,null,null,null,"Sep",7,70,7,12]
["Oct",100,8,88.5,50,8,13,null,null,null,"Oct",7,27,7,10]
["Nov",100,10.5,79,50,10.5,50.5,null,null,null,"Nov",11,85,11,85]
["Dec",100,4,214,50,4,9.5,null,null,null,"Dec",3,207,3,7]
[null,null,null,null,null,null,null,null,null,null,"Annual",{"$f":"AVERAGE(L7:L18)","v":7.833333333333333},{"$f":"MAX(M7:M18)","v":207},{"$f":"AVERAGE(N7:N18)","v":7.833333333333333},{"$f":"MAX(O7:O18)","v":85}]
[]
[null,null,null,null,null,null,null,null,null,{"$f":"+A6","v":2020},"mg/Nm3","Monthly 1/2 hourly mean","Monthly 1/2 hourly maximum","Monthly daily mean","Monthly daily maximum"]
[null,null,null,null,null,null,null,null,null,"A2","Jan",13,68,13,16]
[null,null,null,null,null,null,null,null,null,null,"Feb",11,97,11,17]
[null,null,null,null,null,null,null,null,null,null,"Mar",12,108,12,23]
[null,null,null,null,null,null,null,null,null,null,"Apr",7,65,7,13]
[null,null,null,null,null,null,null,null,null,null,"May",4,114,4,9]
[null,null,null,null,null,null,null,null,null,null,"Jun",9,151,9,30]
[null,null,null,null,null,null,null,null,null,null,"Jul",6,128,6,11]
[null,null,null,null,null,null,null,null,null,null,"Aug",7,116,7,13]
[null,null,null,null,null,null,null,null,null,null,"Sep",6,77,6,10]
[null,null,null,null,null,null,null,null,null,null,"Oct",9,150,9,16]
[null,null,null,null,null,null,null,null,null,null,"Nov",10,73,10,16]
[null,null,null,null,null,null,null,null,null,null,"Dec",5,221,5,12]
[null,null,null,null,null,null,null,null,null,null,"Annual",{"$f":"AVERAGE(L22:L33)","v":8.25},{"$f":"MAX(M22:M33)","v":221},{"$f":"AVERAGE(N22:N33)","v":8.25},{"$f":"MAX(O22:O33)","v":30}]
[]
[null,null,null,null,null,null,null,null,null,{"$f":"+A6","v":2020},"mg/Nm3","Monthly 1/2 hourly mean","Monthly 1/2 hourly maximum","Monthly daily mean","Monthly daily maximum"]
[null,null,null,null,null,null,null,null,null,"A3","Jan"]
[null,null,null,null,null,null,null,null,null,null,"Feb"]
[null,null,null,null,null,null,null,null,null,null,"Mar"]
[null,null,null,null,null,null,null,null,null,null,"Apr"]
[null,null,null,null,null,null,null,null,null,null,"May"]
[null,null,null,null,null,null,null,null,null,null,"Jun"]
[null,null,null,null,null,null,null,null,null,null,"Jul"]
[null,null,null,null,null,null,null,null,null,null,"Aug"]
[null,null,null,null,null,null,null,null,null,null,"Sep"]
[null,null,null,null,null,null,null,null,null,null,"Oct"]
[null,null,null,null,null,null,null,null,null,null,"Nov"]
["Comments :",null,null,null,null,null,null,null,null,null,"Dec"]
[null,null,null,null,null,null,null,null,null,null,"Annual",{"$f":"AVERAGE(L37:L48)","v":{"$error":"#DIV/0!"}},{"$f":"MAX(M37:M48)","v":0},{"$f":"AVERAGE(N37:N48)","v":{"$error":"#DIV/0!"}},{"$f":"MAX(O37:O48)","v":0}]
[]
[null,null,null,null,null,null,null,null,null,{"$f":"+A6","v":2020},"mg/Nm3","Monthly 1/2 hourly mean","Monthly 1/2 hourly maximum","Monthly daily mean","Monthly daily maximum"]
[null,null,null,null,null,null,null,null,null,"A4","Jan"]
[null,null,null,null,null,null,null,null,null,null,"Feb"]
[null,null,null,null,null,null,null,null,null,null,"Mar"]
[null,null,null,null,null,null,null,null,null,null,"Apr"]
[null,null,null,null,null,null,null,null,null,null,"May"]
[null,null,null,null,null,null,null,null,null,null,"Jun"]
[null,null,null,null,null,null,null,null,null,null,"Jul"]
[null,null,null,null,null,null,null,null,null,null,"Aug"]
[null,null,null,null,null,null,null,null,null,null,"Sep"]
[null,null,null,null,null,null,null,null,null,null,"Oct"]
[null,null,null,null,null,null,null,null,null,null,"Nov"]
[null,null,null,null,null,null,null,null,null,null,"Dec"]
[null,null,null,null,null,null,null,null,null,null,"Annual",{"$f":"AVERAGE(L52:L63)","v":{"$error":"#DIV/0!"}},{"$f":"MAX(M52:M63)","v":0},{"$f":"AVERAGE(N52:N63)","v":{"$error":"#DIV/0!"}},{"$f":"MAX(O52:O63)","v":0}]
[]
[null,null,null,null,null,null,null,null,null,{"$f":"+A6","v":2020},"mg/Nm3","Monthly 1/2 hourly mean","Monthly 1/2 hourly maximum","Monthly daily mean","Monthly daily maximum"]
[null,null,null,null,null,null,null,null,null,"A5","Jan"]
[null,null,null,null,null,null,null,null,null,null,"Feb"]
[null,null,null,null,null,null,null,null,null,null,"Mar"]
[null,null,null,null,null,null,null,null,null,null,"Apr"]
[null,null,null,null,null,null,null,null,null,null,"May"]
[null,null,null,null,null,null,null,null,null,null,"Jun"]
[null,null,null,null,null,null,null,null,null,null,"Jul"]
[null,null,null,null,null,null,null,null,null,null,"Aug"]
[null,null,null,null,null,null,null,null,null,null,"Sep"]
[null,null,null,null,null,null,null,null,null,null,"Oct"]
[null,null,null,null,null,null,null,null,null,null,"Nov"]
[null,null,null,null,null,null,null,null,null,null,"Dec"]
[null,null,null,null,null,null,null,null,null,null,"Annual",{"$f":"AVERAGE(L67:L78)","v":{"$error":"#DIV/0!"}},{"$f":"MAX(M67:M78)","v":0},{"$f":"AVERAGE(N67:N78)","v":{"$error":"#DIV/0!"}},{"$f":"MAX(O67:O78)","v":0}]

{"sheet":"NH3","index":20,"n_rows":79,"n_cols":17,"rows_kept":79,"cut":false,"hidden":false,"merged":[[3,16,7,18],[9,16,11,18],[12,16,15,18],[66,9,78,9],[4,1,4,3],[4,4,4,6],[4,9,4,14],[6,9,18,9],[21,9,33,9],[36,9,48,9],[47,0,47,6],[48,0,51,6],[51,9,63,9]]}
[{"$f":"+'Cover Page'!$B$29","v":"Annual Performance Report 2020"},null,null,null,{"$f":"+'Cover Page'!$B$33","v":"Cornwall Energy Recovery Centre"}]
[]
["Monitoring of Ammnonia emissions ",null,null,"Whole Installation",null,null,"See  Notes in Cell Q3",null,null,{"$f":"+A3","v":"Monitoring of Ammnonia emissions "},null,null,null,"Per Combustion Line",null,null,"Notes:"]
[null,null,null,null,null,null,null,null,null,null,null,null,null,null,null,null,"User to add logic to complete Whole installation, Table A5:G18. From the data in Per Combustion Line, Table J6:O79, subject to No. of lines installed"]
["mg/Nm3","1/2 Hourly Reference Periods",null,null,"Daily Reference Periods"]
[{"$f":"+'Cover Page'!C39","v":2020},"1/2 hourly NH3 ELV","Monthly 1/2 hourly mean","Highest 1/2 hourly maximum","Daily NH3 ELV","Monthly daily mean","Highest daily maximum",null,null,{"$f":"+A6","v":2020},"mg/Nm3","Monthly 1/2 hourly mean","Monthly 1/2 hourly maximum","Monthly daily mean","Monthly daily maximum"]
["Jan",0,{"$f":"AVERAGE(L7,L22)","v":0},{"$f":"AVERAGE(M7,M22)","v":2.5},10,{"$f":"AVERAGE(N7,N22)","v":0},{"$f":"AVERAGE(O7,O22)","v":0.5},null,null,"A1","Jan",0,4,0,1]
["Feb",{"$f":"+B7","v":0},0,1.5,{"$f":"+E7","v":10},{"$f":"AVERAGE(N8,N23)","v":0},0.5,null,null,null,"Feb",0,1,0,0]
["Mar",{"$f":"+B8","v":0},0,3,{"$f":"+E8","v":10},0,1,null,null,null,"Mar",0,4,0,1,null,"Whole Installation table A5:G18:"]
["Apr",0,0,0.5,10,0,0,null,null,null,"Apr",0,0,0,0,null,"Mean: for 1/2 hourly and daily periods calculate mean of values across all operational combustion lines for the month"]
["May",0,0,1,10,0,0,null,null,null,"May",0,1,0,0]
["Jun",0,0,2.5,10,0,0.5,null,null,null,"Jun",0,1,0,0]
["Jul",0,0,3.5,10,0,1.5,null,null,null,"Jul",0,2,0,1,null,"Maximum: for 1/2 hourly and daily periods use the highest value across all operational combustion lines for the month"]
["Aug",0,0,1,10,0,1,null,null,null,"Aug",0,1,0,1]
["Sep",0,0,2.5,10,0,1,null,null,null,"Sep",0,4,0,1]
["Oct",0,0,5,10,0,1,null,null,null,"Oct",0,1,0,1]
["Nov",0,0.5,6.95,10,0.5,2.7,null,null,null,"Nov",0.5,6.5,0.5,4.5]
["Dec",0,0,4,10,0,1,null,null,null,"Dec",0,1,0,1]
[null,null,null,null,null,null,null,null,null,null,"Annual",{"$f":"AVERAGE(L7:L18)","v":4.1666666666666664E-2},{"$f":"MAX(M7:M18)","v":6.5},{"$f":"AVERAGE(N7:N18)","v":4.1666666666666664E-2},{"$f":"MAX(O7:O18)","v":4.5}]
[]
[null,null,null,null,null,null,null,null,null,{"$f":"+A6","v":2020},"mg/Nm3","Monthly 1/2 hourly mean","Monthly 1/2 hourly maximum","Monthly daily mean","Monthly daily maximum"]
[null,null,null,null,null,null,null,null,null,"A2","Jan",0,1,0,0]
[null,null,null,null,null,null,null,null,null,null,"Feb",0,2,0,1]
[null,null,null,null,null,null,null,null,null,null,"Mar",0,2,0,1]
[null,null,null,null,null,null,null,null,null,null,"Apr",0,1,0,0]
[null,null,null,null,null,null,null,null,null,null,"May",0,1,0,0]
[null,null,null,null,null,null,null,null,null,null,"Jun",0,4,0,1]
[null,null,null,null,null,null,null,null,null,null,"Jul",0,5,0,2]
[null,null,null,null,null,null,null,null,null,null,"Aug",0,1,0,1]
[null,null,null,null,null,null,null,null,null,null,"Sep",0,1,0,1]
[null,null,null,null,null,null,null,null,null,null,"Oct",0,9,0,1]
[null,null,null,null,null,null,null,null,null,null,"Nov",0.5,7.4,0.5,0.9]
[null,null,null,null,null,null,null,null,null,null,"Dec",0,7,0,1]
[null,null,null,null,null,null,null,null,null,null,"Annual",{"$f":"AVERAGE(L22:L33)","v":4.1666666666666664E-2},{"$f":"MAX(M22:M33)","v":9},{"$f":"AVERAGE(N22:N33)","v":4.1666666666666664E-2},{"$f":"MAX(O22:O33)","v":2}]
[]
[null,null,null,null,null,null,null,null,null,{"$f":"+A6","v":2020},"mg/Nm3","Monthly 1/2 hourly mean","Monthly 1/2 hourly maximum","Monthly daily mean","Monthly daily maximum"]
[null,null,null,null,null,null,null,null,null,"A3","Jan"]
[null,null,null,null,null,null,null,null,null,null,"Feb"]
[null,null,null,null,null,null,null,null,null,null,"Mar"]
[null,null,null,null,null,null,null,null,null,null,"Apr"]
[null,null,null,null,null,null,null,null,null,null,"May"]
[null,null,null,null,null,null,null,null,null,null,"Jun"]
[null,null,null,null,null,null,null,null,null,null,"Jul"]
[null,null,null,null,null,null,null,null,null,null,"Aug"]
[null,null,null,null,null,null,null,null,null,null,"Sep"]
[null,null,null,null,null,null,null,null,null,null,"Oct"]
[null,null,null,null,null,null,null,null,null,null,"Nov"]
["Comments :",null,null,null,null,null,null,null,null,null,"Dec"]
["An indicated ELV value of zero in the table above means that no ammonia limit is set in the permit.  ",null,null,null,null,null,null,null,null,null,"Annual",{"$f":"AVERAGE(L37:L48)","v":{"$error":"#DIV/0!"}},{"$f":"MAX(M37:M48)","v":0},{"$f":"AVERAGE(N37:N48)","v":{"$error":"#DIV/0!"}},{"$f":"MAX(O37:O48)","v":0}]
[]
[null,null,null,null,null,null,null,null,null,{"$f":"+A6","v":2020},"mg/Nm3","Monthly 1/2 hourly mean","Monthly 1/2 hourly maximum","Monthly daily mean","Monthly daily maximum"]
[null,null,null,null,null,null,null,null,null,"A4","Jan"]
[null,null,null,null,null,null,null,null,null,null,"Feb"]
[null,null,null,null,null,null,null,null,null,null,"Mar"]
[null,null,null,null,null,null,null,null,null,null,"Apr"]
[null,null,null,null,null,null,null,null,null,null,"May"]
[null,null,null,null,null,null,null,null,null,null,"Jun"]
[null,null,null,null,null,null,null,null,null,null,"Jul"]
[null,null,null,null,null,null,null,null,null,null,"Aug"]
[null,null,null,null,null,null,null,null,null,null,"Sep"]
[null,null,null,null,null,null,null,null,null,null,"Oct"]
[null,null,null,null,null,null,null,null,null,null,"Nov"]
[null,null,null,null,null,null,null,null,null,null,"Dec"]
[null,null,null,null,null,null,null,null,null,null,"Annual",{"$f":"AVERAGE(L52:L63)","v":{"$error":"#DIV/0!"}},{"$f":"MAX(M52:M63)","v":0},{"$f":"AVERAGE(N52:N63)","v":{"$error":"#DIV/0!"}},{"$f":"MAX(O52:O63)","v":0}]
[]
[null,null,null,null,null,null,null,null,null,{"$f":"+A6","v":2020},"mg/Nm3","Monthly 1/2 hourly mean","Monthly 1/2 hourly maximum","Monthly daily mean","Monthly daily maximum"]
[null,null,null,null,null,null,null,null,null,"A5","Jan"]
[null,null,null,null,null,null,null,null,null,null,"Feb"]
[null,null,null,null,null,null,null,null,null,null,"Mar"]
[null,null,null,null,null,null,null,null,null,null,"Apr"]
[null,null,null,null,null,null,null,null,null,null,"May"]
[null,null,null,null,null,null,null,null,null,null,"Jun"]
[null,null,null,null,null,null,null,null,null,null,"Jul"]
[null,null,null,null,null,null,null,null,null,null,"Aug"]
[null,null,null,null,null,null,null,null,null,null,"Sep"]
[null,null,null,null,null,null,null,null,null,null,"Oct"]
[null,null,null,null,null,null,null,null,null,null,"Nov"]
[null,null,null,null,null,null,null,null,null,null,"Dec"]
[null,null,null,null,null,null,null,null,null,null,"Annual",{"$f":"AVERAGE(L67:L78)","v":{"$error":"#DIV/0!"}},{"$f":"MAX(M67:M78)","v":0},{"$f":"AVERAGE(N67:N78)","v":{"$error":"#DIV/0!"}},{"$f":"MAX(O67:O78)","v":0}]

{"sheet":"HF","index":21,"n_rows":79,"n_cols":17,"rows_kept":79,"cut":false,"hidden":false,"merged":[[66,9,78,9],[3,16,7,18],[4,1,4,3],[4,4,4,6],[4,9,4,14],[6,9,18,9],[9,16,11,18],[12,16,15,18],[21,9,33,9],[36,9,48,9],[47,0,47,6],[48,0,51,6],[51,9,63,9]]}
[{"$f":"+'[1]Cover Page'!$B$29","v":"Annual Performance Report 2020"},null,null,null,{"$f":"+'[1]Cover Page'!$B$33","v":"Cornwall Energy Recovery Centre"}]
[]
["Monitoring of Hydrogen Fluoride emissions ",null,null,"Whole Installation",null,null,"See  Notes in Cell Q3",null,null,{"$f":"+A3","v":"Monitoring of Hydrogen Fluoride emissions "},null,null,null,"Per Combustion Line",null,null,"Notes:"]
[null,null,null,null,null,null,null,null,null,null,null,null,null,null,null,null,"User to add logic to complete Whole installation, Table A5:G18. From the data in Per Combustion Line, Table J6:O79, subject to No. of lines installed"]
["mg/Nm3","1/2 Hourly Reference Periods",null,null,"Daily Reference Periods"]
[{"$f":"+'[1]Cover Page'!C39","v":2020},"1/2 hourly HF ELV","Monthly 1/2 hourly mean","Highest 1/2 hourly maximum","Daily HF ELV","Monthly daily mean","Highest daily maximum",null,null,{"$f":"+A6","v":2020},"mg/Nm3","Monthly 1/2 hourly mean","Monthly 1/2 hourly maximum","Monthly daily mean","Monthly daily maximum"]
["Jan",4,{"$f":"AVERAGE(L7,L22)","v":0},{"$f":"AVERAGE(M7,M22)","v":0.5},1,{"$f":"AVERAGE(N7,N22)","v":0},{"$f":"AVERAGE(O7,O22)","v":0.5},null,null,"A1","Jan",0,1,0,1]
["Feb",4,{"$f":"AVERAGE(L8,L23)","v":0},0.5,{"$f":"+E7","v":1},{"$f":"AVERAGE(N8,N23)","v":0},0.5,null,null,null,"Feb",0,1,0,1]
["Mar",4,0,1,{"$f":"+E8","v":1},0,0,null,null,null,"Mar",0,1,0,0,null,"Whole Installation table A5:G18:"]
["Apr",4,0,0,1,0,0,null,null,null,"Apr",0,0,0,0,null,"Mean: for 1/2 hourly and daily periods calculate mean of values across all operational combustion lines for the month"]
["May",4,0,0.5,1,0,0,null,null,null,"May",0,1,0,0]
["Jun",4,0,1,1,0,0,null,null,null,"Jun",0,1,0,0]
["Jul",4,0,0,1,0,0,null,null,null,"Jul",0,0,0,0,null,"Maximum: for 1/2 hourly and daily periods use the highest value across all operational combustion lines for the month"]
["Aug",4,0,0,1,0,0,null,null,null,"Aug",0,0,0,0]
["Sep",4,0,0,1,0,0,null,null,null,"Sep",0,0,0,0]
["Oct",4,0,0,1,0,0,null,null,null,"Oct",0,0,0,0]
["Nov",4,0,0.05,1,0,0,null,null,null,"Nov",0,0.1,0,0]
["Dec",{"$f":"+B17","v":4},0,0,1,0,0,null,null,null,"Dec",0,0,0,0]
[null,null,null,null,null,null,null,null,null,null,"Annual",{"$f":"AVERAGE(L7:L18)","v":0},{"$f":"MAX(M7:M18)","v":1},{"$f":"AVERAGE(N7:N18)","v":0},{"$f":"MAX(O7:O18)","v":1}]
[]
[null,null,null,null,null,null,null,null,null,{"$f":"+A6","v":2020},"mg/Nm3","Monthly 1/2 hourly mean","Monthly 1/2 hourly maximum","Monthly daily mean","Monthly daily maximum"]
[null,null,null,null,null,null,null,null,null,"A2","Jan",0,0,0,0]
[null,null,null,null,null,null,null,null,null,null,"Feb",0,0,0,0]
[null,null,null,null,null,null,null,null,null,null,"Mar",0,1,0,0]
[null,null,null,null,null,null,null,null,null,null,"Apr",0,0,0,0]
[null,null,null,null,null,null,null,null,null,null,"May",0,0,0,0]
[null,null,null,null,null,null,null,null,null,null,"Jun",0,1,0,0]
[null,null,null,null,null,null,null,null,null,null,"Jul",0,0,0,0]
[null,null,null,null,null,null,null,null,null,null,"Aug",0,0,0,0]
[null,null,null,null,null,null,null,null,null,null,"Sep",0,0,0,0]
[null,null,null,null,null,null,null,null,null,null,"Oct",0,0,0,0]
[null,null,null,null,null,null,null,null,null,null,"Nov",0,0,0,0]
[null,null,null,null,null,null,null,null,null,null,"Dec",0,0,0,0]
[null,null,null,null,null,null,null,null,null,null,"Annual",{"$f":"AVERAGE(L22:L33)","v":0},{"$f":"MAX(M22:M33)","v":1},{"$f":"AVERAGE(N22:N33)","v":0},{"$f":"MAX(O22:O33)","v":0}]
[]
[null,null,null,null,null,null,null,null,null,{"$f":"+A6","v":2020},"mg/Nm3","Monthly 1/2 hourly mean","Monthly 1/2 hourly maximum","Monthly daily mean","Monthly daily maximum"]
[null,null,null,null,null,null,null,null,null,"A3","Jan"]
[null,null,null,null,null,null,null,null,null,null,"Feb"]
[null,null,null,null,null,null,null,null,null,null,"Mar"]
[null,null,null,null,null,null,null,null,null,null,"Apr"]
[null,null,null,null,null,null,null,null,null,null,"May"]
[null,null,null,null,null,null,null,null,null,null,"Jun"]
[null,null,null,null,null,null,null,null,null,null,"Jul"]
[null,null,null,null,null,null,null,null,null,null,"Aug"]
[null,null,null,null,null,null,null,null,null,null,"Sep"]
[null,null,null,null,null,null,null,null,null,null,"Oct"]
[null,null,null,null,null,null,null,null,null,null,"Nov"]
["Comments :",null,null,null,null,null,null,null,null,null,"Dec"]
[null,null,null,null,null,null,null,null,null,null,"Annual",{"$f":"AVERAGE(L37:L48)","v":{"$error":"#DIV/0!"}},{"$f":"MAX(M37:M48)","v":0},{"$f":"AVERAGE(N37:N48)","v":{"$error":"#DIV/0!"}},{"$f":"MAX(O37:O48)","v":0}]
[]
[null,null,null,null,null,null,null,null,null,{"$f":"+A6","v":2020},"mg/Nm3","Monthly 1/2 hourly mean","Monthly 1/2 hourly maximum","Monthly daily mean","Monthly daily maximum"]
[null,null,null,null,null,null,null,null,null,"A4","Jan"]
[null,null,null,null,null,null,null,null,null,null,"Feb"]
[null,null,null,null,null,null,null,null,null,null,"Mar"]
[null,null,null,null,null,null,null,null,null,null,"Apr"]
[null,null,null,null,null,null,null,null,null,null,"May"]
[null,null,null,null,null,null,null,null,null,null,"Jun"]
[null,null,null,null,null,null,null,null,null,null,"Jul"]
[null,null,null,null,null,null,null,null,null,null,"Aug"]
[null,null,null,null,null,null,null,null,null,null,"Sep"]
[null,null,null,null,null,null,null,null,null,null,"Oct"]
[null,null,null,null,null,null,null,null,null,null,"Nov"]
[null,null,null,null,null,null,null,null,null,null,"Dec"]
[null,null,null,null,null,null,null,null,null,null,"Annual",{"$f":"AVERAGE(L52:L63)","v":{"$error":"#DIV/0!"}},{"$f":"MAX(M52:M63)","v":0},{"$f":"AVERAGE(N52:N63)","v":{"$error":"#DIV/0!"}},{"$f":"MAX(O52:O63)","v":0}]
[]
[null,null,null,null,null,null,null,null,null,{"$f":"+A6","v":2020},"mg/Nm3","Monthly 1/2 hourly mean","Monthly 1/2 hourly maximum","Monthly daily mean","Monthly daily maximum"]
[null,null,null,null,null,null,null,null,null,"A5","Jan"]
[null,null,null,null,null,null,null,null,null,null,"Feb"]
[null,null,null,null,null,null,null,null,null,null,"Mar"]
[null,null,null,null,null,null,null,null,null,null,"Apr"]
[null,null,null,null,null,null,null,null,null,null,"May"]
[null,null,null,null,null,null,null,null,null,null,"Jun"]
[null,null,null,null,null,null,null,null,null,null,"Jul"]
[null,null,null,null,null,null,null,null,null,null,"Aug"]
[null,null,null,null,null,null,null,null,null,null,"Sep"]
[null,null,null,null,null,null,null,null,null,null,"Oct"]
[null,null,null,null,null,null,null,null,null,null,"Nov"]
[null,null,null,null,null,null,null,null,null,null,"Dec"]
[null,null,null,null,null,null,null,null,null,null,"Annual",{"$f":"AVERAGE(L67:L78)","v":{"$error":"#DIV/0!"}},{"$f":"MAX(M67:M78)","v":0},{"$f":"AVERAGE(N67:N78)","v":{"$error":"#DIV/0!"}},{"$f":"MAX(O67:O78)","v":0}]